Workbook

Sheet Sheet1
B1: HELP
B2: FORM Analysis v2.0
B3: 02-11-2012 | S3: > | AM3: <
B4: Moonee Valley | AT4: FORM
B5: Result | C5: ="F "&COUNT(AM7:AM30) -> F 7 | D5: Race 1 | T5: Calculations -- hidden for cosmetic reasons | AM5: =B4&" "&D5 -> Moonee Valley Race 1 | AS5: v | AT5: delete if scratched
B6: 3.5.6 | C6: TAB | D6: Form | E6: 15 | F6: 14 | G6: 13 | H6: 12 | I6: 11 | J6: 10 | K6: 9 | L6: 8 | M6: 7 | N6: 6 | O6: 5 | P6: 4 | Q6: 3 | R6: 2 | S6: 1 | T6: Finish Pos | U6: Points | V6: score | W6: =E6 -> 15 | X6: =F6 -> 14 | Y6: 13 | Z6: 12 | AA6: 11 | AB6: 10 | AC6: 9 | AD6: 8 | AE6: 7 | AF6: 6 | AG6: =O6 -> 5 | AH6: =P6 -> 4 | AI6: =Q6 -> 3 | AJ6: =R6 -> 2 | AK6: =S6 -> 1 | AL6: Top 4 | AM6: Analysis | AN6: BM Price | AO6: Rank | AR6: > | AS6: No | AT6: Last 10 | AU6: Horse | AV6: Trainer | AW6: Jockey | AX6: Wt | AY6: Bar | BE6: API | BF6: PP
C7: 1 | D7: =IF(AT7="","",AT7) -> 2x | E7: =IF(OR(E$6="",$D7=""),"",IF(LEN($D7)>=E$6,IF(LEFT(RIGHT($D7,E$6),1)="x","",IF(LEFT(RIGHT($D7,E$6),1)="0",10,1*LEFT(RIGHT($D7,E$6),1))),"")) ->  | R7: 2 | T7: 1 | U7: 8 | V7: =IF(D7="","",VLOOKUP(IF(E7="",11,E7),T$7:U$17,2)+VLOOKUP(IF(F7="",11,F7),T$7:U$17,2)+VLOOKUP(IF(G7="",11,G7),T$7:U$17,2)+VLOOKUP(IF(H7="",11,H7),T$7:U$17,2)+VLOOKUP(IF(I7="",11,I7),T$7:U$17,2)+VLOOKUP(IF(J7="",11,J7),T$7:U$17,2)+VLOOKUP(IF(K7="",11,K7),T$7:U$17,2)+VLOOKUP(IF(L7="",11,L7),T$7:U$17,2)+VLOOKUP(IF(M7="",11,M7),T$7:U$17,2)+VLOOKUP(IF(N7="",11,N7),T$7:U$17,2)+VLOOKUP(IF(O7="",11,O7),T$7:U$17,2)+VLOOKUP(IF(P7="",11,P7),T$7:U$17,2)+VLOOKUP(IF(Q7="",11,Q7),T$7:U$17,2)+VLOOKUP(IF(R7="",11,R7),T$7:U$17,2)+VLOOKUP(IF(S7="",11,S7),T$7:U$17,2)) -> 5 | W7: =IF(E7="","",$U$32/W$6/E7) ->  | AJ7: 3.75 | AL7: =IF(AO7>4,"",1/(AL$32/VLOOKUP(AO7,T$7:U$11,2))) -> 0.1428571429 | AM7: =IF(V7="","",SUM(W7:AK7)+V7) -> 8.75 | AN7: =IF(AL7<>"",ROUND(1/AL7,1),IF(AL34="","",ROUND(AL34,1))) -> 7 | AO7: =IF(AM7="","",RANK(AM7,AM$7:AM$30)) -> 3 | AR7: 1 | AS7: 1 | AT7: 2x | AU7: Extra | AV7: Peter Snowden | AW7: G Boss | AX7: 58 | AY7: 3 | BE7: 7 | BF7: 3.8
C8: 2 | D8: =IF(AT8="","",AT8) ->  | T8: 2 | U8: 5 | V8: =IF(D8="","",VLOOKUP(IF(E8="",24,E8),T$7:U$17,2)+VLOOKUP(IF(F8="",24,F8),T$7:U$17,2)+VLOOKUP(IF(G8="",24,G8),T$7:U$17,2)+VLOOKUP(IF(H8="",24,H8),T$7:U$17,2)+VLOOKUP(IF(I8="",24,I8),T$7:U$17,2)+VLOOKUP(IF(J8="",24,J8),T$7:U$17,2)+VLOOKUP(IF(K8="",24,K8),T$7:U$17,2)+VLOOKUP(IF(L8="",24,L8),T$7:U$17,2)+VLOOKUP(IF(M8="",24,M8),T$7:U$17,2)+VLOOKUP(IF(N8="",24,N8),T$7:U$17,2)+VLOOKUP(IF(O8="",24,O8),T$7:U$17,2)+VLOOKUP(IF(P8="",24,P8),T$7:U$17,2)+VLOOKUP(IF(Q8="",24,Q8),T$7:U$17,2)+VLOOKUP(IF(R8="",24,R8),T$7:U$17,2)+VLOOKUP(IF(S8="",24,S8),T$7:U$17,2)) ->  | AL8: =IF(AO8>4,"",1/(AL$32/VLOOKUP(AO8,T$7:U$11,2))) ->  | AM8: =IF(V8="","",SUM(W8:AK8)+V8) ->  | AN8: =IF(AL8<>"",ROUND(1/AL8,1),IF(AL35="","",ROUND(AL35,1))) ->  | AO8: =IF(AM8="","",RANK(AM8,AM$7:AM$30)) ->  | AR8: 2 | AS8: 2 | AU8: Flirt With Me | AV8: D Brideoake & D Feek | AW8: S W Arnold | AX8: 58 | AY8: 7 | BE8: 0 | BF8: 6.5
B9: 9.9 | C9: 3 | D9: 539x | P9: 5 | Q9: 3 | R9: 9 | T9: 3 | U9: 3 | V9: 4.2 | AH9: 0.75 | AI9: 1.666666667 | AJ9: 0.8333333333 | AL9: 0.09523809524 | AM9: 7.45 | AN9: =IF(AL9<>"",ROUND(1/AL9,1),IF(AL36="","",ROUND(AL36,1))) -> 10.5 | AO9: 4 | AR9: 3 | AS9: 3 | AT9: 539x | AU9: General Groove | AV9: L J Corstens | AW9: C Newitt | AX9: 58 | AY9: 5 | BE9: 3.5 | BF9: 6.5
C10: 4 | D10: 4 | S10: 4 | T10: 4 | U10: 2 | V10: 2 | AK10: 3.75 | AM10: 5.75 | AN10: =IF(AL10<>"",ROUND(1/AL10,1),IF(AL37="","",ROUND(AL37,1))) -> 23.8 | AO10: 7 | AR10: 4 | AS10: 4 | AT10: 4 | AU10: I'm Corleone | AV10: G Eurell | AW10: J Bowman | AX10: 58 | AY10: 9 | BE10: 0.6 | BF10: 8.5
C11: 5 | D11: 875 | Q11: 8 | R11: 7 | S11: 5 | T11: 5 | U11: 1 | V11: 1.8 | AI11: 0.625 | AJ11: 1.071428571 | AK11: 3 | AM11: 6.496428571 | AN11: =IF(AL11<>"",ROUND(1/AL11,1),IF(AL38="","",ROUND(AL38,1))) -> 21.1 | AO11: 6 | AR11: 5 | AS11: 5 | AT11: 875 | AU11: Inkjet Sprinter | AV11: S A Dwyer | AW11: Nicholas Hall | AX11: 58 | AY11: 10 | BE11: 0.3 | BF11: 26
C12: 6 | D12: 2 | S12: 2 | T12: 6 | U12: 0.8 | V12: 5 | AK12: 7.5 | AL12: 0.2380952381 | AM12: 12.5 | AN12: =IF(AL12<>"",ROUND(1/AL12,1),IF(AL39="","",ROUND(AL39,1))) -> 4.2 | AO12: 2 | AR12: 6 | AS12: 6 | AT12: 2 | AU12: Jeepers Creepers | AV12: R E Laing | AW12: Ms S Wynne | AX12: 58 | AY12: 2 | BE12: 3 | BF12: 16
C13: 7 | D13: 3x7 | Q13: 3 | S13: 7 | T13: 7 | U13: 0.5 | V13: 3.5 | AI13: 1.666666667 | AK13: 2.142857143 | AM13: 7.30952381 | AN13: =IF(AL13<>"",ROUND(1/AL13,1),IF(AL40="","",ROUND(AL40,1))) -> 18.7 | AO13: 5 | AR13: 7 | AS13: 7 | AT13: 3x7 | AU13: Real Boost | AV13: D J Roebuck | AW13: B Knobel | AX13: 58 | AY13: 1 | BE13: 1.2 | BF13: 26
C14: 8 | T14: 8 | U14: 0.3 | AN14: =IF(AL14<>"",ROUND(1/AL14,1),IF(AL41="","",ROUND(AL41,1))) ->  | AR14: 8 | AS14: 8 | AU14: Shoalhaven | AV14: D A Hayes | AW14: M J Walker | AX14: 58 | AY14: 8 | BE14: 0 | BF14: 21
C15: 9 | D15: 22 | R15: 2 | S15: 2 | T15: 9 | U15: 0.2 | V15: 10 | AJ15: 3.75 | AK15: 7.5 | AL15: 0.380952381 | AM15: 21.25 | AN15: =IF(AL15<>"",ROUND(1/AL15,1),IF(AL42="","",ROUND(AL42,1))) -> 2.6 | AO15: 1 | AR15: 9 | AS15: 9 | AT15: 22 | AU15: Sommelier Pete | AV15: G A Osborne | AW15: M Zahra | AX15: 58 | AY15: 6 | BE15: 6.3 | BF15: 4.8
C16: 10 | T16: 10 | U16: 0.1 | AN16: =IF(AL16<>"",ROUND(1/AL16,1),IF(AL43="","",ROUND(AL43,1))) ->  | AR16: 10 | AS16: 10 | AU16: The Originator | AV16: M A Kavanagh | AW16: D Oliver | AX16: 58 | AY16: 4 | BE16: 0 | BF16: 5.5
C17: 11 | T17: 11 | U17: 0 | AN17: =IF(AL17<>"",ROUND(1/AL17,1),IF(AL44="","",ROUND(AL44,1))) ->  | AR17: 11 | AS17: 11 | AU17: Wild Erp | AV17: M C Kent | AW17: P Mertens | AX17: 58 | AY17: 11 | BE17: 2.3 | BF17: 9
C18: 12 | T18: 12 | AN18: =IF(AL18<>"",ROUND(1/AL18,1),IF(AL45="","",ROUND(AL45,1))) ->  | AR18: 12
C19: 13 | T19: 13 | AN19: =IF(AL19<>"",ROUND(1/AL19,1),IF(AL46="","",ROUND(AL46,1))) ->  | AR19: 13
C20: 14 | T20: 14 | AN20: =IF(AL20<>"",ROUND(1/AL20,1),IF(AL47="","",ROUND(AL47,1))) ->  | AR20: 14
C21: 15 | T21: 15 | AN21: =IF(AL21<>"",ROUND(1/AL21,1),IF(AL48="","",ROUND(AL48,1))) ->  | AR21: 15
C22: 16 | S22: =IF(OR(S$6="",$D22=""),"",IF(LEN($D22)>=S$6,IF(LEFT(RIGHT($D22,S$6),1)="x","",IF(LEFT(RIGHT($D22,S$6),1)="0",10,1*LEFT(RIGHT($D22,S$6),1))),"")) ->  | T22: 16 | AN22: =IF(AL22<>"",ROUND(1/AL22,1),IF(AL49="","",ROUND(AL49,1))) ->  | AR22: 16
C23: 17 | E23: =IF(OR(E$6="",$D23=""),"",IF(LEN($D23)>=E$6,IF(LEFT(RIGHT($D23,E$6),1)="x","",IF(LEFT(RIGHT($D23,E$6),1)="0",10,1*LEFT(RIGHT($D23,E$6),1))),"")) ->  | T23: 17 | AN23: =IF(AL23<>"",ROUND(1/AL23,1),IF(AL50="","",ROUND(AL50,1))) ->  | AR23: 17
C24: 18 | T24: 18 | W24: =IF(E24="","",$U$32/W$6/E24) ->  | AN24: =IF(AL24<>"",ROUND(1/AL24,1),IF(AL51="","",ROUND(AL51,1))) ->  | AR24: 18
C25: 19 | T25: 19 | AN25: =IF(AL25<>"",ROUND(1/AL25,1),IF(AL52="","",ROUND(AL52,1))) ->  | AR25: 19
C26: 20 | T26: 20 | AN26: =IF(AL26<>"",ROUND(1/AL26,1),IF(AL53="","",ROUND(AL53,1))) ->  | AR26: 20
C27: 21 | T27: 21 | AN27: =IF(AL27<>"",ROUND(1/AL27,1),IF(AL54="","",ROUND(AL54,1))) ->  | AR27: 21
C28: 22 | T28: 22 | AN28: =IF(AL28<>"",ROUND(1/AL28,1),IF(AL55="","",ROUND(AL55,1))) ->  | AR28: 22
C29: 23 | T29: 23 | AN29: =IF(AL29<>"",ROUND(1/AL29,1),IF(AL56="","",ROUND(AL56,1))) ->  | AR29: 23
C30: 24 | T30: 24 | AN30: =IF(AL30<>"",ROUND(1/AL30,1),IF(AL57="","",ROUND(AL57,1))) ->  | AR30: 24
U31: weight | AL31: =SUM(AL7:AL30) -> 0.8571428571
U32: 15 | AL32: =SUM(U7:U10)-4+U11*COUNT(AM7:AM30) -> 21
S33: > | AK33: =(1-AL31)/AK59 -> 0.00730504657 | AM33: <
AK34: =IF(AO7>4,AM7,"") ->  | AL34: =IF(AK34="","",1/(AK$33*AK34)) -> 
AK35: =IF(AO8>4,AM8,"") ->  | AL35: =IF(AK35="","",1/(AK$33*AK35)) -> 
AK36: =IF(AO9>4,AM9,"") ->  | AL36: =IF(AK36="","",1/(AK$33*AK36)) -> 
AK37: =IF(AO10>4,AM10,"") -> 5.75 | AL37: =IF(AK37="","",1/(AK$33*AK37)) -> 23.80724638
AK38: =IF(AO11>4,AM11,"") -> 6.496428571 | AL38: =IF(AK38="","",1/(AK$33*AK38)) -> 21.07183434
AK39: =IF(AO12>4,AM12,"") ->  | AL39: =IF(AK39="","",1/(AK$33*AK39)) -> 
AK40: =IF(AO13>4,AM13,"") -> 7.30952381 | AL40: =IF(AK40="","",1/(AK$33*AK40)) -> 18.72785016
AK41: =IF(AO14>4,AM14,"") ->  | AL41: =IF(AK41="","",1/(AK$33*AK41)) -> 
AK42: =IF(AO15>4,AM15,"") ->  | AL42: =IF(AK42="","",1/(AK$33*AK42)) -> 
AK43: =IF(AO16>4,AM16,"") ->  | AL43: =IF(AK43="","",1/(AK$33*AK43)) -> 
AK44: =IF(AO17>4,AM17,"") ->  | AL44: =IF(AK44="","",1/(AK$33*AK44)) -> 
AK45: =IF(AO18>4,AM18,"") ->  | AL45: =IF(AK45="","",1/(AK$33*AK45)) -> 
AK46: =IF(AO19>4,AM19,"") ->  | AL46: =IF(AK46="","",1/(AK$33*AK46)) -> 
AK47: =IF(AO20>4,AM20,"") ->  | AL47: =IF(AK47="","",1/(AK$33*AK47)) -> 
AK48: =IF(AO21>4,AM21,"") ->  | AL48: =IF(AK48="","",1/(AK$33*AK48)) -> 
AK49: =IF(AO22>4,AM22,"") ->  | AL49: =IF(AK49="","",1/(AK$33*AK49)) -> 
AK50: =IF(AO23>4,AM23,"") ->  | AL50: =IF(AK50="","",1/(AK$33*AK50)) -> 
AK51: =IF(AO24>4,AM24,"") ->  | AL51: =IF(AK51="","",1/(AK$33*AK51)) -> 
AK52: =IF(AO25>4,AM25,"") ->  | AL52: =IF(AK52="","",1/(AK$33*AK52)) -> 
AK53: =IF(AO26>4,AM26,"") ->  | AL53: =IF(AK53="","",1/(AK$33*AK53)) -> 
AK54: =IF(AO27>4,AM27,"") ->  | AL54: =IF(AK54="","",1/(AK$33*AK54)) -> 
AK55: =IF(AO28>4,AM28,"") ->  | AL55: =IF(AK55="","",1/(AK$33*AK55)) -> 
AK56: =IF(AO29>4,AM29,"") ->  | AL56: =IF(AK56="","",1/(AK$33*AK56)) -> 
AK57: =IF(AO30>4,AM30,"") ->  | AL57: =IF(AK57="","",1/(AK$33*AK57)) -> 
AK58: =IF(AO31>4,AM31,"") ->  | AL58: =IF(AK58="","",1/(AK$33*AK58)) -> 
AK59: =SUM(AK35:AK58) -> 19.55595238

Sheet Sheet2
B1: HELP
B2: FORM Analysis v2.0
B3: 02-11-2012 | S3: > | AM3: <
B4: Moonee Valley | AT4: FORM
B5: Result | C5: ="F "&COUNT(AM7:AM30) -> F 6 | D5: Race 2 | T5: Calculations -- hidden for cosmetic reasons | AM5: =B4&" "&D5 -> Moonee Valley Race 2 | AS5: v | AT5: delete if scratched
B6: 5.6.1 | C6: TAB | D6: Form | E6: 15 | F6: 14 | G6: 13 | H6: 12 | I6: 11 | J6: 10 | K6: 9 | L6: 8 | M6: 7 | N6: 6 | O6: 5 | P6: 4 | Q6: 3 | R6: 2 | S6: 1 | T6: Finish Pos | U6: Points | V6: score | W6: =E6 -> 15 | X6: =F6 -> 14 | Y6: 13 | Z6: 12 | AA6: 11 | AB6: 10 | AC6: 9 | AD6: 8 | AE6: 7 | AF6: 6 | AG6: =O6 -> 5 | AH6: =P6 -> 4 | AI6: =Q6 -> 3 | AJ6: =R6 -> 2 | AK6: =S6 -> 1 | AL6: Top 4 | AM6: Analysis | AN6: BM Price | AO6: Rank | AR6: > | AS6: No | AT6: Last 10 | AU6: Horse | AV6: Trainer | AW6: Jockey | AX6: Wt | AY6: Bar | BE6: API | BF6: PP
C7: 1 | D7: =IF(AT7="","",AT7) -> 3112130x047 | E7: =IF(OR(E$6="",$D7=""),"",IF(LEN($D7)>=E$6,IF(LEFT(RIGHT($D7,E$6),1)="x","",IF(LEFT(RIGHT($D7,E$6),1)="0",10,1*LEFT(RIGHT($D7,E$6),1))),"")) ->  | I7: 3 | J7: 1 | K7: 1 | L7: 2 | M7: 1 | N7: 3 | O7: 10 | Q7: 10 | R7: 4 | S7: 7 | T7: 1 | U7: 8 | V7: =IF(D7="","",VLOOKUP(IF(E7="",11,E7),T$7:U$17,2)+VLOOKUP(IF(F7="",11,F7),T$7:U$17,2)+VLOOKUP(IF(G7="",11,G7),T$7:U$17,2)+VLOOKUP(IF(H7="",11,H7),T$7:U$17,2)+VLOOKUP(IF(I7="",11,I7),T$7:U$17,2)+VLOOKUP(IF(J7="",11,J7),T$7:U$17,2)+VLOOKUP(IF(K7="",11,K7),T$7:U$17,2)+VLOOKUP(IF(L7="",11,L7),T$7:U$17,2)+VLOOKUP(IF(M7="",11,M7),T$7:U$17,2)+VLOOKUP(IF(N7="",11,N7),T$7:U$17,2)+VLOOKUP(IF(O7="",11,O7),T$7:U$17,2)+VLOOKUP(IF(P7="",11,P7),T$7:U$17,2)+VLOOKUP(IF(Q7="",11,Q7),T$7:U$17,2)+VLOOKUP(IF(R7="",11,R7),T$7:U$17,2)+VLOOKUP(IF(S7="",11,S7),T$7:U$17,2)) -> 37.7 | W7: =IF(E7="","",$U$32/W$6/E7) ->  | AA7: 0.4545454545 | AB7: 1.5 | AC7: 1.666666667 | AD7: 0.9375 | AE7: 2.142857143 | AF7: 0.8333333333 | AG7: 0.3 | AI7: 0.5 | AJ7: 1.875 | AK7: 2.142857143 | AL7: =IF(AO7>4,"",1/(AL$32/VLOOKUP(AO7,T$7:U$11,2))) ->  | AM7: =IF(V7="","",SUM(W7:AK7)+V7) -> 50.05275974 | AN7: =IF(AL7<>"",ROUND(1/AL7,1),IF(AL34="","",ROUND(AL34,1))) -> 8.8 | AO7: =IF(AM7="","",RANK(AM7,AM$7:AM$30)) -> 5 | AR7: 1 | AS7: 1 | AT7: 3112130x047 | AU7: Sensational Report | AV7: Ms D Wynne | AW7: Ms S Wynne | AX7: 60 | AY7: 5 | BE7: 4.8 | BF7: 8
C8: 2 | D8: =IF(AT8="","",AT8) ->  | T8: 2 | U8: 5 | V8: =IF(D8="","",VLOOKUP(IF(E8="",24,E8),T$7:U$17,2)+VLOOKUP(IF(F8="",24,F8),T$7:U$17,2)+VLOOKUP(IF(G8="",24,G8),T$7:U$17,2)+VLOOKUP(IF(H8="",24,H8),T$7:U$17,2)+VLOOKUP(IF(I8="",24,I8),T$7:U$17,2)+VLOOKUP(IF(J8="",24,J8),T$7:U$17,2)+VLOOKUP(IF(K8="",24,K8),T$7:U$17,2)+VLOOKUP(IF(L8="",24,L8),T$7:U$17,2)+VLOOKUP(IF(M8="",24,M8),T$7:U$17,2)+VLOOKUP(IF(N8="",24,N8),T$7:U$17,2)+VLOOKUP(IF(O8="",24,O8),T$7:U$17,2)+VLOOKUP(IF(P8="",24,P8),T$7:U$17,2)+VLOOKUP(IF(Q8="",24,Q8),T$7:U$17,2)+VLOOKUP(IF(R8="",24,R8),T$7:U$17,2)+VLOOKUP(IF(S8="",24,S8),T$7:U$17,2)) ->  | AL8: =IF(AO8>4,"",1/(AL$32/VLOOKUP(AO8,T$7:U$11,2))) ->  | AM8: =IF(V8="","",SUM(W8:AK8)+V8) ->  | AN8: =IF(AL8<>"",ROUND(1/AL8,1),IF(AL35="","",ROUND(AL35,1))) ->  | AO8: =IF(AM8="","",RANK(AM8,AM$7:AM$30)) ->  | AR8: 2 | AS8: 2 | AU8: Barbie Dazzler | AV8: Ms L Bonella | AW8: Thomas Sadler (3kg) | AX8: 56.5 (53.5) | AY8: 4 | BE8: 3.9 | BF8: 6.5
C9: 3 | D9: 14425x1154 | J9: 1 | K9: 4 | L9: 4 | M9: 2 | N9: 5 | P9: 1 | Q9: 1 | R9: 5 | S9: 4 | T9: 3 | U9: 3 | V9: 37 | AB9: 1.5 | AC9: 0.4166666667 | AD9: 0.46875 | AE9: 1.071428571 | AF9: 0.5 | AH9: 3.75 | AI9: 5 | AJ9: 1.5 | AK9: 3.75 | AL9: 0.25 | AM9: 54.95684524 | AN9: =IF(AL9<>"",ROUND(1/AL9,1),IF(AL36="","",ROUND(AL36,1))) -> 4 | AO9: 2 | AR9: 3 | AS9: 3 | AT9: 14425x1154 | AU9: Outdoor | AV9: Anthony Freedman | AW9: S W Arnold | AX9: 56.5 | AY9: 6 | BE9: 5.8 | BF9: 3.8
C10: 4 | D10: 9x622242516 | I10: 9 | K10: 6 | L10: 2 | M10: 2 | N10: 2 | O10: 4 | P10: 2 | Q10: 5 | R10: 1 | S10: 6 | T10: 4 | U10: 2 | V10: 32.8 | AA10: 0.1515151515 | AC10: 0.2777777778 | AD10: 0.9375 | AE10: 1.071428571 | AF10: 1.25 | AG10: 0.75 | AH10: 1.875 | AI10: 1 | AJ10: 7.5 | AK10: 2.5 | AL10: 0.1 | AM10: 50.1132215 | AN10: =IF(AL10<>"",ROUND(1/AL10,1),IF(AL37="","",ROUND(AL37,1))) -> 10 | AO10: 4 | AR10: 4 | AS10: 4 | AT10: 9x622242516 | AU10: Tranquera | AV10: R D Griffiths | AW10: Damian Lane (1.5kg) | AX10: 55.5 (54) | AY10: 3 | BE10: 5.5 | BF10: 3.2
B11: 6 | C11: 5 | D11: 21x421 | N11: 2 | O11: 1 | Q11: 4 | R11: 2 | S11: 1 | T11: 5 | U11: 1 | V11: 28 | AF11: 1.25 | AG11: 3 | AI11: 1.25 | AJ11: 3.75 | AK11: 15 | AL11: 0.15 | AM11: 52.25 | AN11: =IF(AL11<>"",ROUND(1/AL11,1),IF(AL38="","",ROUND(AL38,1))) -> 6.7 | AO11: 3 | AR11: 5 | AS11: 5 | AT11: 21x421 | AU11: Hollywood | AV11: D T O'Brien | AW11: J Winks | AX11: 55 | AY11: 1 | BE11: 6.1 | BF11: 4
C12: 6 | D12: 123x4721 | L12: 1 | M12: 2 | N12: 3 | P12: 4 | Q12: 7 | R12: 2 | S12: 1 | T12: 6 | U12: 0.8 | V12: 31.5 | AD12: 1.875 | AE12: 1.071428571 | AF12: 0.8333333333 | AH12: 0.9375 | AI12: 0.7142857143 | AJ12: 3.75 | AK12: 15 | AL12: 0.4 | AM12: 55.68154762 | AN12: =IF(AL12<>"",ROUND(1/AL12,1),IF(AL39="","",ROUND(AL39,1))) -> 2.5 | AO12: 1 | AR12: 6 | AS12: 6 | AT12: 123x4721 | AU12: Help | AV12: E Jusufovic | AW12: R J Myers (1.5kg) | AX12: 55 (53.5) | AY12: 2 | BE12: 3.2 | BF12: 13
C13: 7 | T13: 7 | U13: 0.5 | AN13: =IF(AL13<>"",ROUND(1/AL13,1),IF(AL40="","",ROUND(AL40,1))) ->  | AR13: 7 | AS13: 7 | AU13: Harlequin Manner | AV13: Ms D Smith | AX13: 55 | AY13: 7 | BE13: 3.3 | BF13: 13
C14: 8 | D14: 02x03641333 | I14: 10 | J14: 2 | L14: 10 | M14: 3 | N14: 6 | O14: 4 | P14: 1 | Q14: 3 | R14: 3 | S14: 3 | T14: 8 | U14: 0.3 | V14: 28 | AA14: 0.1363636364 | AB14: 0.75 | AD14: 0.1875 | AE14: 0.7142857143 | AF14: 0.4166666667 | AG14: 0.75 | AH14: 3.75 | AI14: 1.666666667 | AJ14: 2.5 | AK14: 5 | AM14: 43.87148268 | AN14: =IF(AL14<>"",ROUND(1/AL14,1),IF(AL41="","",ROUND(AL41,1))) -> 10 | AO14: 6 | AR14: 8 | AS14: 8 | AT14: 02x03641333 | AU14: Prussian Dancer | AV14: Ms J Bird | AW14: Nicholas Hall | AX14: 55 | AY14: 8 | BE14: 1.5 | BF14: 21
C15: 9 | T15: 9 | U15: 0.2 | AN15: =IF(AL15<>"",ROUND(1/AL15,1),IF(AL42="","",ROUND(AL42,1))) ->  | AR15: 9
C16: 10 | T16: 10 | U16: 0.1 | AN16: =IF(AL16<>"",ROUND(1/AL16,1),IF(AL43="","",ROUND(AL43,1))) ->  | AR16: 10
C17: 11 | T17: 11 | U17: 0 | AN17: =IF(AL17<>"",ROUND(1/AL17,1),IF(AL44="","",ROUND(AL44,1))) ->  | AR17: 11
C18: 12 | T18: 12 | AN18: =IF(AL18<>"",ROUND(1/AL18,1),IF(AL45="","",ROUND(AL45,1))) ->  | AR18: 12
C19: 13 | T19: 13 | AN19: =IF(AL19<>"",ROUND(1/AL19,1),IF(AL46="","",ROUND(AL46,1))) ->  | AR19: 13
C20: 14 | T20: 14 | AN20: =IF(AL20<>"",ROUND(1/AL20,1),IF(AL47="","",ROUND(AL47,1))) ->  | AR20: 14
C21: 15 | T21: 15 | AN21: =IF(AL21<>"",ROUND(1/AL21,1),IF(AL48="","",ROUND(AL48,1))) ->  | AR21: 15
C22: 16 | S22: =IF(OR(S$6="",$D22=""),"",IF(LEN($D22)>=S$6,IF(LEFT(RIGHT($D22,S$6),1)="x","",IF(LEFT(RIGHT($D22,S$6),1)="0",10,1*LEFT(RIGHT($D22,S$6),1))),"")) ->  | T22: 16 | AN22: =IF(AL22<>"",ROUND(1/AL22,1),IF(AL49="","",ROUND(AL49,1))) ->  | AR22: 16
C23: 17 | E23: =IF(OR(E$6="",$D23=""),"",IF(LEN($D23)>=E$6,IF(LEFT(RIGHT($D23,E$6),1)="x","",IF(LEFT(RIGHT($D23,E$6),1)="0",10,1*LEFT(RIGHT($D23,E$6),1))),"")) ->  | T23: 17 | AN23: =IF(AL23<>"",ROUND(1/AL23,1),IF(AL50="","",ROUND(AL50,1))) ->  | AR23: 17
C24: 18 | T24: 18 | W24: =IF(E24="","",$U$32/W$6/E24) ->  | AN24: =IF(AL24<>"",ROUND(1/AL24,1),IF(AL51="","",ROUND(AL51,1))) ->  | AR24: 18
C25: 19 | T25: 19 | AN25: =IF(AL25<>"",ROUND(1/AL25,1),IF(AL52="","",ROUND(AL52,1))) ->  | AR25: 19
C26: 20 | T26: 20 | AN26: =IF(AL26<>"",ROUND(1/AL26,1),IF(AL53="","",ROUND(AL53,1))) ->  | AR26: 20
C27: 21 | T27: 21 | AN27: =IF(AL27<>"",ROUND(1/AL27,1),IF(AL54="","",ROUND(AL54,1))) ->  | AR27: 21
C28: 22 | T28: 22 | AN28: =IF(AL28<>"",ROUND(1/AL28,1),IF(AL55="","",ROUND(AL55,1))) ->  | AR28: 22
C29: 23 | T29: 23 | AN29: =IF(AL29<>"",ROUND(1/AL29,1),IF(AL56="","",ROUND(AL56,1))) ->  | AR29: 23
C30: 24 | T30: 24 | AN30: =IF(AL30<>"",ROUND(1/AL30,1),IF(AL57="","",ROUND(AL57,1))) ->  | AR30: 24
U31: weight | AL31: =SUM(AL7:AL30) -> 0.9
U32: 15 | AL32: =SUM(U7:U10)-4+U11*COUNT(AM7:AM30) -> 20
S33: > | AK33: =(1-AL31)/AK59 -> 0.00227938501 | AM33: <
AK34: =IF(AO7>4,AM7,"") -> 50.05275974 | AL34: =IF(AK34="","",1/(AK$33*AK34)) -> 8.765047704
AK35: =IF(AO8>4,AM8,"") ->  | AL35: =IF(AK35="","",1/(AK$33*AK35)) -> 
AK36: =IF(AO9>4,AM9,"") ->  | AL36: =IF(AK36="","",1/(AK$33*AK36)) -> 
AK37: =IF(AO10>4,AM10,"") ->  | AL37: =IF(AK37="","",1/(AK$33*AK37)) -> 
AK38: =IF(AO11>4,AM11,"") ->  | AL38: =IF(AK38="","",1/(AK$33*AK38)) -> 
AK39: =IF(AO12>4,AM12,"") ->  | AL39: =IF(AK39="","",1/(AK$33*AK39)) -> 
AK40: =IF(AO13>4,AM13,"") ->  | AL40: =IF(AK40="","",1/(AK$33*AK40)) -> 
AK41: =IF(AO14>4,AM14,"") -> 43.87148268 | AL41: =IF(AK41="","",1/(AK$33*AK41)) -> 10
AK42: =IF(AO15>4,AM15,"") ->  | AL42: =IF(AK42="","",1/(AK$33*AK42)) -> 
AK43: =IF(AO16>4,AM16,"") ->  | AL43: =IF(AK43="","",1/(AK$33*AK43)) -> 
AK44: =IF(AO17>4,AM17,"") ->  | AL44: =IF(AK44="","",1/(AK$33*AK44)) -> 
AK45: =IF(AO18>4,AM18,"") ->  | AL45: =IF(AK45="","",1/(AK$33*AK45)) -> 
AK46: =IF(AO19>4,AM19,"") ->  | AL46: =IF(AK46="","",1/(AK$33*AK46)) -> 
AK47: =IF(AO20>4,AM20,"") ->  | AL47: =IF(AK47="","",1/(AK$33*AK47)) -> 
AK48: =IF(AO21>4,AM21,"") ->  | AL48: =IF(AK48="","",1/(AK$33*AK48)) -> 
AK49: =IF(AO22>4,AM22,"") ->  | AL49: =IF(AK49="","",1/(AK$33*AK49)) -> 
AK50: =IF(AO23>4,AM23,"") ->  | AL50: =IF(AK50="","",1/(AK$33*AK50)) -> 
AK51: =IF(AO24>4,AM24,"") ->  | AL51: =IF(AK51="","",1/(AK$33*AK51)) -> 
AK52: =IF(AO25>4,AM25,"") ->  | AL52: =IF(AK52="","",1/(AK$33*AK52)) -> 
AK53: =IF(AO26>4,AM26,"") ->  | AL53: =IF(AK53="","",1/(AK$33*AK53)) -> 
AK54: =IF(AO27>4,AM27,"") ->  | AL54: =IF(AK54="","",1/(AK$33*AK54)) -> 
AK55: =IF(AO28>4,AM28,"") ->  | AL55: =IF(AK55="","",1/(AK$33*AK55)) -> 
AK56: =IF(AO29>4,AM29,"") ->  | AL56: =IF(AK56="","",1/(AK$33*AK56)) -> 
AK57: =IF(AO30>4,AM30,"") ->  | AL57: =IF(AK57="","",1/(AK$33*AK57)) -> 
AK58: =IF(AO31>4,AM31,"") ->  | AL58: =IF(AK58="","",1/(AK$33*AK58)) -> 
AK59: =SUM(AK35:AK58) -> 43.87148268

Sheet Sheet3
B1: HELP
B2: FORM Analysis v2.0
B3: 02-11-2012 | S3: > | AM3: <
B4: Moonee Valley | AT4: FORM
B5: Result | C5: ="F "&COUNT(AM7:AM30) -> F 7 | D5: Race 3 | T5: Calculations -- hidden for cosmetic reasons | AM5: =B4&" "&D5 -> Moonee Valley Race 3 | AS5: v | AT5: delete if scratched
B6: 2.7.5 | C6: TAB | D6: Form | E6: 15 | F6: 14 | G6: 13 | H6: 12 | I6: 11 | J6: 10 | K6: 9 | L6: 8 | M6: 7 | N6: 6 | O6: 5 | P6: 4 | Q6: 3 | R6: 2 | S6: 1 | T6: Finish Pos | U6: Points | V6: score | W6: =E6 -> 15 | X6: =F6 -> 14 | Y6: 13 | Z6: 12 | AA6: 11 | AB6: 10 | AC6: 9 | AD6: 8 | AE6: 7 | AF6: 6 | AG6: =O6 -> 5 | AH6: =P6 -> 4 | AI6: =Q6 -> 3 | AJ6: =R6 -> 2 | AK6: =S6 -> 1 | AL6: Top 4 | AM6: Analysis | AN6: BM Price | AO6: Rank | AR6: > | AS6: No | AT6: Last 10 | AU6: Horse | AV6: Trainer | AW6: Jockey | AX6: Wt | AY6: Bar | BE6: API | BF6: PP
C7: 1 | D7: =IF(AT7="","",AT7) -> 22 | E7: =IF(OR(E$6="",$D7=""),"",IF(LEN($D7)>=E$6,IF(LEFT(RIGHT($D7,E$6),1)="x","",IF(LEFT(RIGHT($D7,E$6),1)="0",10,1*LEFT(RIGHT($D7,E$6),1))),"")) ->  | R7: 2 | S7: 2 | T7: 1 | U7: 8 | V7: =IF(D7="","",VLOOKUP(IF(E7="",11,E7),T$7:U$17,2)+VLOOKUP(IF(F7="",11,F7),T$7:U$17,2)+VLOOKUP(IF(G7="",11,G7),T$7:U$17,2)+VLOOKUP(IF(H7="",11,H7),T$7:U$17,2)+VLOOKUP(IF(I7="",11,I7),T$7:U$17,2)+VLOOKUP(IF(J7="",11,J7),T$7:U$17,2)+VLOOKUP(IF(K7="",11,K7),T$7:U$17,2)+VLOOKUP(IF(L7="",11,L7),T$7:U$17,2)+VLOOKUP(IF(M7="",11,M7),T$7:U$17,2)+VLOOKUP(IF(N7="",11,N7),T$7:U$17,2)+VLOOKUP(IF(O7="",11,O7),T$7:U$17,2)+VLOOKUP(IF(P7="",11,P7),T$7:U$17,2)+VLOOKUP(IF(Q7="",11,Q7),T$7:U$17,2)+VLOOKUP(IF(R7="",11,R7),T$7:U$17,2)+VLOOKUP(IF(S7="",11,S7),T$7:U$17,2)) -> 10 | W7: =IF(E7="","",$U$32/W$6/E7) ->  | AJ7: 3.75 | AK7: 7.5 | AL7: =IF(AO7>4,"",1/(AL$32/VLOOKUP(AO7,T$7:U$11,2))) -> 0.2380952381 | AM7: =IF(V7="","",SUM(W7:AK7)+V7) -> 21.25 | AN7: =IF(AL7<>"",ROUND(1/AL7,1),IF(AL34="","",ROUND(AL34,1))) -> 4.2 | AO7: =IF(AM7="","",RANK(AM7,AM$7:AM$30)) -> 2 | AR7: 1 | AS7: 1 | AT7: 22 | AU7: Dreaming The Dream | AV7: A & D Campbell | AW7: D Gauci | AX7: 58.5 | AY7: 10 | BE7: 2.6 | BF7: 6
B8: 4.8 | C8: 2 | D8: =IF(AT8="","",AT8) -> 266439x | M8: 2 | N8: 6 | O8: 6 | P8: 4 | Q8: 3 | R8: 9 | T8: 2 | U8: 5 | V8: =IF(D8="","",VLOOKUP(IF(E8="",24,E8),T$7:U$17,2)+VLOOKUP(IF(F8="",24,F8),T$7:U$17,2)+VLOOKUP(IF(G8="",24,G8),T$7:U$17,2)+VLOOKUP(IF(H8="",24,H8),T$7:U$17,2)+VLOOKUP(IF(I8="",24,I8),T$7:U$17,2)+VLOOKUP(IF(J8="",24,J8),T$7:U$17,2)+VLOOKUP(IF(K8="",24,K8),T$7:U$17,2)+VLOOKUP(IF(L8="",24,L8),T$7:U$17,2)+VLOOKUP(IF(M8="",24,M8),T$7:U$17,2)+VLOOKUP(IF(N8="",24,N8),T$7:U$17,2)+VLOOKUP(IF(O8="",24,O8),T$7:U$17,2)+VLOOKUP(IF(P8="",24,P8),T$7:U$17,2)+VLOOKUP(IF(Q8="",24,Q8),T$7:U$17,2)+VLOOKUP(IF(R8="",24,R8),T$7:U$17,2)+VLOOKUP(IF(S8="",24,S8),T$7:U$17,2)) -> 11.8 | AE8: 1.071428571 | AF8: 0.4166666667 | AG8: 0.5 | AH8: 0.9375 | AI8: 1.666666667 | AJ8: 0.8333333333 | AL8: =IF(AO8>4,"",1/(AL$32/VLOOKUP(AO8,T$7:U$11,2))) -> 0.1428571429 | AM8: =IF(V8="","",SUM(W8:AK8)+V8) -> 17.22559524 | AN8: =IF(AL8<>"",ROUND(1/AL8,1),IF(AL35="","",ROUND(AL35,1))) -> 7 | AO8: =IF(AM8="","",RANK(AM8,AM$7:AM$30)) -> 3 | AR8: 2 | AS8: 2 | AT8: 266439x | AU8: Falconer | AV8: J B Cummings | AW8: S W Arnold | AX8: 58.5 | AY8: 4 | BE8: 1.6 | BF8: 6
C9: 3 | D9: 2 | S9: 2 | T9: 3 | U9: 3 | V9: 5 | AK9: 7.5 | AM9: 12.5 | AN9: =IF(AL9<>"",ROUND(1/AL9,1),IF(AL36="","",ROUND(AL36,1))) -> 13 | AO9: 5 | AR9: 3 | AS9: 3 | AT9: 2 | AU9: Gilgandra Jack | AV9: C J Davies | AW9: A Mc Cabe | AX9: 58.5 | AY9: 5 | BE9: 3.4 | BF9: 11
C10: 4 | D10: 3 | S10: 3 | T10: 4 | U10: 2 | V10: 3 | AK10: 5 | AM10: 8 | AN10: =IF(AL10<>"",ROUND(1/AL10,1),IF(AL37="","",ROUND(AL37,1))) -> 20.3 | AO10: 6 | AR10: 4 | AS10: 4 | AT10: 3 | AU10: God's Will | AV10: B L Jenkins | AW10: I Gundogdu | AX10: 58.5 | AY10: 11 | BE10: 0.6 | BF10: 21
C11: 5 | D11: 7 | S11: 7 | T11: 5 | U11: 1 | V11: 0.5 | AK11: 2.142857143 | AM11: 2.642857143 | AN11: =IF(AL11<>"",ROUND(1/AL11,1),IF(AL38="","",ROUND(AL38,1))) -> 61.3 | AO11: 7 | AR11: 5 | AS11: 5 | AT11: 7 | AU11: Hollywood Gothic | AV11: Todd Balfour | AW11: Nicholas Hall | AX11: 58.5 | AY11: 9 | BE11: 1.2 | BF11: 3.5
C12: 6 | T12: 6 | U12: 0.8 | AN12: =IF(AL12<>"",ROUND(1/AL12,1),IF(AL39="","",ROUND(AL39,1))) ->  | AR12: 6 | AS12: 6 | AU12: Canto | AV12: Jason Warren | AW12: D Oliver | AX12: 57 | AY12: 7 | BE12: 0 | BF12: 5
C13: 7 | T13: 7 | U13: 0.5 | AN13: =IF(AL13<>"",ROUND(1/AL13,1),IF(AL40="","",ROUND(AL40,1))) ->  | AR13: 7 | AS13: 7 | AU13: More Than A Song | AV13: D A Hayes | AW13: C Newitt | AX13: 57 | AY13: 6 | BE13: 0 | BF13: 9
C14: 8 | T14: 8 | U14: 0.3 | AN14: =IF(AL14<>"",ROUND(1/AL14,1),IF(AL41="","",ROUND(AL41,1))) ->  | AR14: 8 | AS14: 8 | AU14: Red Hot Shot | AV14: B J McCarthy | AW14: J Mott | AX14: 57 | AY14: 2 | BE14: 0 | BF14: 16
C15: 9 | D15: 226x0x | N15: 2 | O15: 2 | P15: 6 | R15: 10 | T15: 9 | U15: 0.2 | V15: 10.9 | AF15: 1.25 | AG15: 1.5 | AH15: 0.625 | AJ15: 0.75 | AL15: 0.09523809524 | AM15: 15.025 | AN15: =IF(AL15<>"",ROUND(1/AL15,1),IF(AL42="","",ROUND(AL42,1))) -> 10.5 | AO15: 4 | AR15: 9 | AS15: 9 | AT15: 226x0x | AU15: Lustful | AV15: R S McDonald | AW15: M Rodd | AX15: 56.5 | AY15: 3 | BE15: 2.1 | BF15: 17
C16: 10 | D16: 09x4242323x2 | H16: 10 | I16: 9 | K16: 4 | L16: 2 | M16: 4 | N16: 2 | O16: 3 | P16: 2 | Q16: 3 | S16: 2 | T16: 10 | U16: 0.1 | V16: 30.3 | Z16: 0.125 | AA16: 0.1515151515 | AC16: 0.4166666667 | AD16: 0.9375 | AE16: 0.5357142857 | AF16: 1.25 | AG16: 1 | AH16: 1.875 | AI16: 1.666666667 | AK16: 7.5 | AL16: 0.380952381 | AM16: 45.75806277 | AN16: =IF(AL16<>"",ROUND(1/AL16,1),IF(AL43="","",ROUND(AL43,1))) -> 2.6 | AO16: 1 | AR16: 10 | AS16: 10 | AT16: 09x4242323x2 | AU16: Manhattan Gold | AV16: C C Parry | AW16: B Higgins | AX16: 56.5 | AY16: 8 | BE16: 1.3 | BF16: 11
C17: 11 | T17: 11 | U17: 0 | AN17: =IF(AL17<>"",ROUND(1/AL17,1),IF(AL44="","",ROUND(AL44,1))) ->  | AR17: 11 | AS17: 11 | AU17: La Fluorescent | AV17: D T O'Brien | AW17: M J Walker | AX17: 55 | AY17: 1 | BE17: 0 | BF17: 9
C18: 12 | T18: 12 | AN18: =IF(AL18<>"",ROUND(1/AL18,1),IF(AL45="","",ROUND(AL45,1))) ->  | AR18: 12
C19: 13 | T19: 13 | AN19: =IF(AL19<>"",ROUND(1/AL19,1),IF(AL46="","",ROUND(AL46,1))) ->  | AR19: 13
C20: 14 | T20: 14 | AN20: =IF(AL20<>"",ROUND(1/AL20,1),IF(AL47="","",ROUND(AL47,1))) ->  | AR20: 14
C21: 15 | T21: 15 | AN21: =IF(AL21<>"",ROUND(1/AL21,1),IF(AL48="","",ROUND(AL48,1))) ->  | AR21: 15
C22: 16 | T22: 16 | AN22: =IF(AL22<>"",ROUND(1/AL22,1),IF(AL49="","",ROUND(AL49,1))) ->  | AR22: 16
C23: 17 | E23: =IF(OR(E$6="",$D23=""),"",IF(LEN($D23)>=E$6,IF(LEFT(RIGHT($D23,E$6),1)="x","",IF(LEFT(RIGHT($D23,E$6),1)="0",10,1*LEFT(RIGHT($D23,E$6),1))),"")) ->  | T23: 17 | AN23: =IF(AL23<>"",ROUND(1/AL23,1),IF(AL50="","",ROUND(AL50,1))) ->  | AR23: 17
C24: 18 | T24: 18 | W24: =IF(E24="","",$U$32/W$6/E24) ->  | AN24: =IF(AL24<>"",ROUND(1/AL24,1),IF(AL51="","",ROUND(AL51,1))) ->  | AR24: 18
C25: 19 | T25: 19 | AN25: =IF(AL25<>"",ROUND(1/AL25,1),IF(AL52="","",ROUND(AL52,1))) ->  | AR25: 19
C26: 20 | T26: 20 | AN26: =IF(AL26<>"",ROUND(1/AL26,1),IF(AL53="","",ROUND(AL53,1))) ->  | AR26: 20
C27: 21 | T27: 21 | AN27: =IF(AL27<>"",ROUND(1/AL27,1),IF(AL54="","",ROUND(AL54,1))) ->  | AR27: 21
C28: 22 | T28: 22 | AN28: =IF(AL28<>"",ROUND(1/AL28,1),IF(AL55="","",ROUND(AL55,1))) ->  | AR28: 22
C29: 23 | T29: 23 | AN29: =IF(AL29<>"",ROUND(1/AL29,1),IF(AL56="","",ROUND(AL56,1))) ->  | AR29: 23
C30: 24 | T30: 24 | AN30: =IF(AL30<>"",ROUND(1/AL30,1),IF(AL57="","",ROUND(AL57,1))) ->  | AR30: 24
U31: weight | AL31: =SUM(AL7:AL30) -> 0.8571428571
U32: 15 | AL32: =SUM(U7:U10)-4+U11*COUNT(AM7:AM30) -> 21
S33: > | AK33: =(1-AL31)/AK59 -> 0.006172839506 | AM33: <
AK34: =IF(AO7>4,AM7,"") ->  | AL34: =IF(AK34="","",1/(AK$33*AK34)) -> 
AK35: =IF(AO8>4,AM8,"") ->  | AL35: =IF(AK35="","",1/(AK$33*AK35)) -> 
AK36: =IF(AO9>4,AM9,"") -> 12.5 | AL36: =IF(AK36="","",1/(AK$33*AK36)) -> 12.96
AK37: =IF(AO10>4,AM10,"") -> 8 | AL37: =IF(AK37="","",1/(AK$33*AK37)) -> 20.25
AK38: =IF(AO11>4,AM11,"") -> 2.642857143 | AL38: =IF(AK38="","",1/(AK$33*AK38)) -> 61.2972973
AK39: =IF(AO12>4,AM12,"") ->  | AL39: =IF(AK39="","",1/(AK$33*AK39)) -> 
AK40: =IF(AO13>4,AM13,"") ->  | AL40: =IF(AK40="","",1/(AK$33*AK40)) -> 
AK41: =IF(AO14>4,AM14,"") ->  | AL41: =IF(AK41="","",1/(AK$33*AK41)) -> 
AK42: =IF(AO15>4,AM15,"") ->  | AL42: =IF(AK42="","",1/(AK$33*AK42)) -> 
AK43: =IF(AO16>4,AM16,"") ->  | AL43: =IF(AK43="","",1/(AK$33*AK43)) -> 
AK44: =IF(AO17>4,AM17,"") ->  | AL44: =IF(AK44="","",1/(AK$33*AK44)) -> 
AK45: =IF(AO18>4,AM18,"") ->  | AL45: =IF(AK45="","",1/(AK$33*AK45)) -> 
AK46: =IF(AO19>4,AM19,"") ->  | AL46: =IF(AK46="","",1/(AK$33*AK46)) -> 
AK47: =IF(AO20>4,AM20,"") ->  | AL47: =IF(AK47="","",1/(AK$33*AK47)) -> 
AK48: =IF(AO21>4,AM21,"") ->  | AL48: =IF(AK48="","",1/(AK$33*AK48)) -> 
AK49: =IF(AO22>4,AM22,"") ->  | AL49: =IF(AK49="","",1/(AK$33*AK49)) -> 
AK50: =IF(AO23>4,AM23,"") ->  | AL50: =IF(AK50="","",1/(AK$33*AK50)) -> 
AK51: =IF(AO24>4,AM24,"") ->  | AL51: =IF(AK51="","",1/(AK$33*AK51)) -> 
AK52: =IF(AO25>4,AM25,"") ->  | AL52: =IF(AK52="","",1/(AK$33*AK52)) -> 
AK53: =IF(AO26>4,AM26,"") ->  | AL53: =IF(AK53="","",1/(AK$33*AK53)) -> 
AK54: =IF(AO27>4,AM27,"") ->  | AL54: =IF(AK54="","",1/(AK$33*AK54)) -> 
AK55: =IF(AO28>4,AM28,"") ->  | AL55: =IF(AK55="","",1/(AK$33*AK55)) -> 
AK56: =IF(AO29>4,AM29,"") ->  | AL56: =IF(AK56="","",1/(AK$33*AK56)) -> 
AK57: =IF(AO30>4,AM30,"") ->  | AL57: =IF(AK57="","",1/(AK$33*AK57)) -> 
AK58: =IF(AO31>4,AM31,"") ->  | AL58: =IF(AK58="","",1/(AK$33*AK58)) -> 
AK59: =SUM(AK35:AK58) -> 23.14285714

Sheet Sheet4
B1: HELP
B2: FORM Analysis v2.0
B3: 02-11-2012 | S3: > | AM3: <
B4: Moonee Valley | AT4: FORM
B5: Result | C5: ="F "&COUNT(AM7:AM30) -> F 10 | D5: Race 4 | T5: Calculations -- hidden for cosmetic reasons | AM5: =B4&" "&D5 -> Moonee Valley Race 4 | AS5: v | AT5: delete if scratched
B6: 8.7.9 | C6: TAB | D6: Form | E6: 15 | F6: 14 | G6: 13 | H6: 12 | I6: 11 | J6: 10 | K6: 9 | L6: 8 | M6: 7 | N6: 6 | O6: 5 | P6: 4 | Q6: 3 | R6: 2 | S6: 1 | T6: Finish Pos | U6: Points | V6: score | W6: =E6 -> 15 | X6: =F6 -> 14 | Y6: 13 | Z6: 12 | AA6: 11 | AB6: 10 | AC6: 9 | AD6: 8 | AE6: 7 | AF6: 6 | AG6: =O6 -> 5 | AH6: =P6 -> 4 | AI6: =Q6 -> 3 | AJ6: =R6 -> 2 | AK6: =S6 -> 1 | AL6: Top 4 | AM6: Analysis | AN6: BM Price | AO6: Rank | AR6: > | AS6: No | AT6: Last 10 | AU6: Horse | AV6: Trainer | AW6: Jockey | AX6: Wt | AY6: Bar | BE6: API | BF6: PP
C7: 1 | D7: =IF(AT7="","",AT7) -> 58x725622x24 | E7: =IF(OR(E$6="",$D7=""),"",IF(LEN($D7)>=E$6,IF(LEFT(RIGHT($D7,E$6),1)="x","",IF(LEFT(RIGHT($D7,E$6),1)="0",10,1*LEFT(RIGHT($D7,E$6),1))),"")) ->  | H7: 5 | I7: 8 | K7: 7 | L7: 2 | M7: 5 | N7: 6 | O7: 2 | P7: 2 | R7: 2 | S7: 4 | T7: 1 | U7: 8 | V7: =IF(D7="","",VLOOKUP(IF(E7="",11,E7),T$7:U$17,2)+VLOOKUP(IF(F7="",11,F7),T$7:U$17,2)+VLOOKUP(IF(G7="",11,G7),T$7:U$17,2)+VLOOKUP(IF(H7="",11,H7),T$7:U$17,2)+VLOOKUP(IF(I7="",11,I7),T$7:U$17,2)+VLOOKUP(IF(J7="",11,J7),T$7:U$17,2)+VLOOKUP(IF(K7="",11,K7),T$7:U$17,2)+VLOOKUP(IF(L7="",11,L7),T$7:U$17,2)+VLOOKUP(IF(M7="",11,M7),T$7:U$17,2)+VLOOKUP(IF(N7="",11,N7),T$7:U$17,2)+VLOOKUP(IF(O7="",11,O7),T$7:U$17,2)+VLOOKUP(IF(P7="",11,P7),T$7:U$17,2)+VLOOKUP(IF(Q7="",11,Q7),T$7:U$17,2)+VLOOKUP(IF(R7="",11,R7),T$7:U$17,2)+VLOOKUP(IF(S7="",11,S7),T$7:U$17,2)) -> 25.6 | W7: =IF(E7="","",$U$32/W$6/E7) ->  | Z7: 0.25 | AA7: 0.1704545455 | AC7: 0.2380952381 | AD7: 0.9375 | AE7: 0.4285714286 | AF7: 0.4166666667 | AG7: 1.5 | AH7: 1.875 | AJ7: 3.75 | AK7: 3.75 | AL7: =IF(AO7>4,"",1/(AL$32/VLOOKUP(AO7,T$7:U$11,2))) ->  | AM7: =IF(V7="","",SUM(W7:AK7)+V7) -> 38.91628788 | AN7: =IF(AL7<>"",ROUND(1/AL7,1),IF(AL34="","",ROUND(AL34,1))) -> 16.1 | AO7: =IF(AM7="","",RANK(AM7,AM$7:AM$30)) -> 7 | AR7: 1 | AS7: 1 | AT7: 58x725622x24 | AU7: Akzar | AV7: R J Blacker | AW7: A Mc Cabe (2kg) | AX7: 60 (58) | AY7: 1 | BE7: 7.2 | BF7: 4
C8: 2 | D8: =IF(AT8="","",AT8) -> 171x941x8631 | H8: 1 | I8: 7 | J8: 1 | L8: 9 | M8: 4 | N8: 1 | P8: 8 | Q8: 6 | R8: 3 | S8: 1 | T8: 2 | U8: 5 | V8: =IF(D8="","",VLOOKUP(IF(E8="",24,E8),T$7:U$17,2)+VLOOKUP(IF(F8="",24,F8),T$7:U$17,2)+VLOOKUP(IF(G8="",24,G8),T$7:U$17,2)+VLOOKUP(IF(H8="",24,H8),T$7:U$17,2)+VLOOKUP(IF(I8="",24,I8),T$7:U$17,2)+VLOOKUP(IF(J8="",24,J8),T$7:U$17,2)+VLOOKUP(IF(K8="",24,K8),T$7:U$17,2)+VLOOKUP(IF(L8="",24,L8),T$7:U$17,2)+VLOOKUP(IF(M8="",24,M8),T$7:U$17,2)+VLOOKUP(IF(N8="",24,N8),T$7:U$17,2)+VLOOKUP(IF(O8="",24,O8),T$7:U$17,2)+VLOOKUP(IF(P8="",24,P8),T$7:U$17,2)+VLOOKUP(IF(Q8="",24,Q8),T$7:U$17,2)+VLOOKUP(IF(R8="",24,R8),T$7:U$17,2)+VLOOKUP(IF(S8="",24,S8),T$7:U$17,2)) -> 38.8 | Z8: 1.25 | AA8: 0.1948051948 | AB8: 1.5 | AD8: 0.2083333333 | AE8: 0.5357142857 | AF8: 2.5 | AH8: 0.46875 | AI8: 0.8333333333 | AJ8: 2.5 | AK8: 15 | AL8: =IF(AO8>4,"",1/(AL$32/VLOOKUP(AO8,T$7:U$11,2))) -> 0.125 | AM8: =IF(V8="","",SUM(W8:AK8)+V8) -> 63.79093615 | AN8: =IF(AL8<>"",ROUND(1/AL8,1),IF(AL35="","",ROUND(AL35,1))) -> 8 | AO8: =IF(AM8="","",RANK(AM8,AM$7:AM$30)) -> 3 | AR8: 2 | AS8: 2 | AT8: 171x941x8631 | AU8: Lethal Dealings | AV8: Luke Oliver | AW8: A Mallyon | AX8: 57.5 | AY8: 6 | BE8: 3.5 | BF8: 8.5
C9: 3 | D9: 41x42127x699 | H9: 4 | I9: 1 | K9: 4 | L9: 2 | M9: 1 | N9: 2 | O9: 7 | Q9: 6 | R9: 9 | S9: 9 | T9: 3 | U9: 3 | V9: 31.7 | Z9: 0.3125 | AA9: 1.363636364 | AC9: 0.4166666667 | AD9: 0.9375 | AE9: 2.142857143 | AF9: 1.25 | AG9: 0.4285714286 | AI9: 0.8333333333 | AJ9: 0.8333333333 | AK9: 1.666666667 | AM9: 41.88506494 | AN9: =IF(AL9<>"",ROUND(1/AL9,1),IF(AL36="","",ROUND(AL36,1))) -> 15 | AO9: 5 | AR9: 3 | AS9: 3 | AT9: 41x42127x699 | AU9: Barysh Quest | AV9: G S White | AW9: C Newitt | AX9: 57 | AY9: 4 | BE9: 9.2 | BF9: 5.5
C10: 4 | D10: 191x7069x700 | H10: 1 | I10: 9 | J10: 1 | L10: 7 | M10: 10 | N10: 6 | O10: 9 | Q10: 7 | R10: 10 | S10: 10 | T10: 4 | U10: 2 | V10: 18.5 | Z10: 1.25 | AA10: 0.1515151515 | AB10: 1.5 | AD10: 0.2678571429 | AE10: 0.2142857143 | AF10: 0.4166666667 | AG10: 0.3333333333 | AI10: 0.7142857143 | AJ10: 0.75 | AK10: 1.5 | AM10: 25.59794372 | AN10: =IF(AL10<>"",ROUND(1/AL10,1),IF(AL37="","",ROUND(AL37,1))) -> 24.5 | AO10: 9 | AR10: 4 | AS10: 4 | AT10: 191x7069x700 | AU10: Testas Double | AV10: K M Keys | AW10: Nicholas Hall | AX10: 56.5 | AY10: 9 | BE10: 4.3 | BF10: 31
C11: 5 | D11: 131135x1820 | I11: 1 | J11: 3 | K11: 1 | L11: 1 | M11: 3 | N11: 5 | P11: 1 | Q11: 8 | R11: 2 | S11: 10 | T11: 5 | U11: 1 | V11: 44.4 | AA11: 1.363636364 | AB11: 0.5 | AC11: 1.666666667 | AD11: 1.875 | AE11: 0.7142857143 | AF11: 0.5 | AH11: 3.75 | AI11: 0.625 | AJ11: 3.75 | AK11: 1.5 | AL11: 0.08333333333 | AM11: 60.64458874 | AN11: =IF(AL11<>"",ROUND(1/AL11,1),IF(AL38="","",ROUND(AL38,1))) -> 12 | AO11: 4 | AR11: 5 | AS11: 5 | AT11: 131135x1820 | AU11: Quick Shakes | AV11: S Morrish | AW11: D Oliver | AX11: 56 | AY11: 7 | BE11: 2.9 | BF11: 11
C12: 6 | D12: 64470x85847 | I12: 6 | J12: 4 | K12: 4 | L12: 7 | M12: 10 | O12: 8 | P12: 5 | Q12: 8 | R12: 4 | S12: 7 | T12: 6 | U12: 0.8 | V12: 9.5 | AA12: 0.2272727273 | AB12: 0.375 | AC12: 0.4166666667 | AD12: 0.2678571429 | AE12: 0.2142857143 | AG12: 0.375 | AH12: 0.75 | AI12: 0.625 | AJ12: 1.875 | AK12: 2.142857143 | AM12: 16.76893939 | AN12: =IF(AL12<>"",ROUND(1/AL12,1),IF(AL39="","",ROUND(AL39,1))) -> 37.4 | AO12: 10 | AR12: 6 | AS12: 6 | AT12: 64470x85847 | AU12: Sean Baile Mor | AV12: Todd Balfour | AW12: Dean Holland | AX12: 55 | AY12: 5 | BE12: 4.6 | BF12: 15
C13: 7 | D13: 2546x684210 | I13: 2 | J13: 5 | K13: 4 | L13: 6 | N13: 6 | O13: 8 | P13: 4 | Q13: 2 | R13: 1 | S13: 10 | T13: 7 | U13: 0.5 | V13: 25 | AA13: 0.6818181818 | AB13: 0.3 | AC13: 0.4166666667 | AD13: 0.3125 | AF13: 0.4166666667 | AG13: 0.375 | AH13: 0.9375 | AI13: 2.5 | AJ13: 7.5 | AK13: 1.5 | AM13: 39.94015152 | AN13: =IF(AL13<>"",ROUND(1/AL13,1),IF(AL40="","",ROUND(AL40,1))) -> 15.7 | AO13: 6 | AR13: 7 | AS13: 7 | AT13: 2546x684210 | AU13: Apres | AV13: C W McDonald | AW13: M J Walker | AX13: 55 | AY13: 2 | BE13: 3.1 | BF13: 9
B14: 5.1 | C14: 8 | D14: 3321163214 | J14: 3 | K14: 3 | L14: 2 | M14: 1 | N14: 1 | O14: 6 | P14: 3 | Q14: 2 | R14: 1 | S14: 4 | T14: 8 | U14: 0.3 | V14: 45.8 | AB14: 0.5 | AC14: 0.5555555556 | AD14: 0.9375 | AE14: 2.142857143 | AF14: 2.5 | AG14: 0.5 | AH14: 1.25 | AI14: 2.5 | AJ14: 7.5 | AK14: 3.75 | AL14: 0.3333333333 | AM14: 67.9359127 | AN14: =IF(AL14<>"",ROUND(1/AL14,1),IF(AL41="","",ROUND(AL41,1))) -> 3 | AO14: 1 | AR14: 8 | AS14: 8 | AT14: 3321163214 | AU14: Clang And Bang | AV14: D K Weir | AW14: Thomas Sadler (3kg) | AX14: 55 (52) | AY14: 8 | BE14: 3.4 | BF14: 4
C15: 9 | D15: 91758x41141 | I15: 9 | J15: 1 | K15: 7 | L15: 5 | M15: 8 | O15: 4 | P15: 1 | Q15: 1 | R15: 4 | S15: 1 | T15: 9 | U15: 0.2 | V15: 38 | AA15: 0.1515151515 | AB15: 1.5 | AC15: 0.2380952381 | AD15: 0.375 | AE15: 0.2678571429 | AG15: 0.75 | AH15: 3.75 | AI15: 5 | AJ15: 1.875 | AK15: 15 | AL15: 0.2083333333 | AM15: 66.90746753 | AN15: =IF(AL15<>"",ROUND(1/AL15,1),IF(AL42="","",ROUND(AL42,1))) -> 4.8 | AO15: 2 | AR15: 9 | AS15: 9 | AT15: 91758x41141 | AU15: Magic Pulse | AV15: Ms S Jaensch | AW15: Ms H Mc Kechnie | AX15: 55 | AY15: 11 | BE15: 3 | BF15: 11
C16: 10 | D16: 0x5x35022364 | H16: 10 | J16: 5 | L16: 3 | M16: 5 | N16: 10 | O16: 2 | P16: 2 | Q16: 3 | R16: 6 | S16: 4 | T16: 10 | U16: 0.1 | V16: 21 | Z16: 0.125 | AB16: 0.3 | AD16: 0.625 | AE16: 0.4285714286 | AF16: 0.25 | AG16: 1.5 | AH16: 1.875 | AI16: 1.666666667 | AJ16: 1.25 | AK16: 3.75 | AM16: 32.7702381 | AN16: =IF(AL16<>"",ROUND(1/AL16,1),IF(AL43="","",ROUND(AL43,1))) -> 19.2 | AO16: 8 | AR16: 10 | AS16: 10 | AT16: 0x5x35022364 | AU16: Eleuther | AV16: R J Besanko | AW16: P Mertens | AX16: 55 | AY16: 10 | BE16: 4.4 | BF16: 9
C17: 11 | T17: 11 | U17: 0 | AN17: =IF(AL17<>"",ROUND(1/AL17,1),IF(AL44="","",ROUND(AL44,1))) ->  | AR17: 11 | AS17: 11 | AU17: Boredom | AV17: S J Webb | AW17: G Boss | AX17: 55 | AY17: 3 | BE17: 2.4 | BF17: 11
C18: 12 | T18: 12 | AN18: =IF(AL18<>"",ROUND(1/AL18,1),IF(AL45="","",ROUND(AL45,1))) ->  | AR18: 12
C19: 13 | T19: 13 | AN19: =IF(AL19<>"",ROUND(1/AL19,1),IF(AL46="","",ROUND(AL46,1))) ->  | AR19: 13
C20: 14 | T20: 14 | AN20: =IF(AL20<>"",ROUND(1/AL20,1),IF(AL47="","",ROUND(AL47,1))) ->  | AR20: 14
C21: 15 | T21: 15 | AN21: =IF(AL21<>"",ROUND(1/AL21,1),IF(AL48="","",ROUND(AL48,1))) ->  | AR21: 15
C22: 16 | T22: 16 | AN22: =IF(AL22<>"",ROUND(1/AL22,1),IF(AL49="","",ROUND(AL49,1))) ->  | AR22: 16
C23: 17 | E23: =IF(OR(E$6="",$D23=""),"",IF(LEN($D23)>=E$6,IF(LEFT(RIGHT($D23,E$6),1)="x","",IF(LEFT(RIGHT($D23,E$6),1)="0",10,1*LEFT(RIGHT($D23,E$6),1))),"")) ->  | T23: 17 | AN23: =IF(AL23<>"",ROUND(1/AL23,1),IF(AL50="","",ROUND(AL50,1))) ->  | AR23: 17
C24: 18 | T24: 18 | W24: =IF(E24="","",$U$32/W$6/E24) ->  | AN24: =IF(AL24<>"",ROUND(1/AL24,1),IF(AL51="","",ROUND(AL51,1))) ->  | AR24: 18
C25: 19 | T25: 19 | AN25: =IF(AL25<>"",ROUND(1/AL25,1),IF(AL52="","",ROUND(AL52,1))) ->  | AR25: 19
C26: 20 | T26: 20 | AN26: =IF(AL26<>"",ROUND(1/AL26,1),IF(AL53="","",ROUND(AL53,1))) ->  | AR26: 20
C27: 21 | T27: 21 | AN27: =IF(AL27<>"",ROUND(1/AL27,1),IF(AL54="","",ROUND(AL54,1))) ->  | AR27: 21
C28: 22 | T28: 22 | AN28: =IF(AL28<>"",ROUND(1/AL28,1),IF(AL55="","",ROUND(AL55,1))) ->  | AR28: 22
C29: 23 | T29: 23 | AN29: =IF(AL29<>"",ROUND(1/AL29,1),IF(AL56="","",ROUND(AL56,1))) ->  | AR29: 23
C30: 24 | T30: 24 | AN30: =IF(AL30<>"",ROUND(1/AL30,1),IF(AL57="","",ROUND(AL57,1))) ->  | AR30: 24
U31: weight | AL31: =SUM(AL7:AL30) -> 0.75
U32: 15 | AL32: =SUM(U7:U10)-4+U11*COUNT(AM7:AM30) -> 24
S33: > | AK33: =(1-AL31)/AK59 -> 0.001592738766 | AM33: <
AK34: =IF(AO7>4,AM7,"") -> 38.91628788 | AL34: =IF(AK34="","",1/(AK$33*AK34)) -> 16.13333092
AK35: =IF(AO8>4,AM8,"") ->  | AL35: =IF(AK35="","",1/(AK$33*AK35)) -> 
AK36: =IF(AO9>4,AM9,"") -> 41.88506494 | AL36: =IF(AK36="","",1/(AK$33*AK36)) -> 14.98981443
AK37: =IF(AO10>4,AM10,"") -> 25.59794372 | AL37: =IF(AK37="","",1/(AK$33*AK37)) -> 24.52733538
AK38: =IF(AO11>4,AM11,"") ->  | AL38: =IF(AK38="","",1/(AK$33*AK38)) -> 
AK39: =IF(AO12>4,AM12,"") -> 16.76893939 | AL39: =IF(AK39="","",1/(AK$33*AK39)) -> 37.44120817
AK40: =IF(AO13>4,AM13,"") -> 39.94015152 | AL40: =IF(AK40="","",1/(AK$33*AK40)) -> 15.71975385
AK41: =IF(AO14>4,AM14,"") ->  | AL41: =IF(AK41="","",1/(AK$33*AK41)) -> 
AK42: =IF(AO15>4,AM15,"") ->  | AL42: =IF(AK42="","",1/(AK$33*AK42)) -> 
AK43: =IF(AO16>4,AM16,"") -> 32.7702381 | AL43: =IF(AK43="","",1/(AK$33*AK43)) -> 19.15913302
AK44: =IF(AO17>4,AM17,"") ->  | AL44: =IF(AK44="","",1/(AK$33*AK44)) -> 
AK45: =IF(AO18>4,AM18,"") ->  | AL45: =IF(AK45="","",1/(AK$33*AK45)) -> 
AK46: =IF(AO19>4,AM19,"") ->  | AL46: =IF(AK46="","",1/(AK$33*AK46)) -> 
AK47: =IF(AO20>4,AM20,"") ->  | AL47: =IF(AK47="","",1/(AK$33*AK47)) -> 
AK48: =IF(AO21>4,AM21,"") ->  | AL48: =IF(AK48="","",1/(AK$33*AK48)) -> 
AK49: =IF(AO22>4,AM22,"") ->  | AL49: =IF(AK49="","",1/(AK$33*AK49)) -> 
AK50: =IF(AO23>4,AM23,"") ->  | AL50: =IF(AK50="","",1/(AK$33*AK50)) -> 
AK51: =IF(AO24>4,AM24,"") ->  | AL51: =IF(AK51="","",1/(AK$33*AK51)) -> 
AK52: =IF(AO25>4,AM25,"") ->  | AL52: =IF(AK52="","",1/(AK$33*AK52)) -> 
AK53: =IF(AO26>4,AM26,"") ->  | AL53: =IF(AK53="","",1/(AK$33*AK53)) -> 
AK54: =IF(AO27>4,AM27,"") ->  | AL54: =IF(AK54="","",1/(AK$33*AK54)) -> 
AK55: =IF(AO28>4,AM28,"") ->  | AL55: =IF(AK55="","",1/(AK$33*AK55)) -> 
AK56: =IF(AO29>4,AM29,"") ->  | AL56: =IF(AK56="","",1/(AK$33*AK56)) -> 
AK57: =IF(AO30>4,AM30,"") ->  | AL57: =IF(AK57="","",1/(AK$33*AK57)) -> 
AK58: =IF(AO31>4,AM31,"") ->  | AL58: =IF(AK58="","",1/(AK$33*AK58)) -> 
AK59: =SUM(AK35:AK58) -> 156.9623377

Sheet Sheet5
B1: HELP
B2: FORM Analysis v2.0
B3: 02-11-2012 | S3: > | AM3: <
B4: Moonee Valley | AT4: FORM
B5: Result | C5: ="F "&COUNT(AM7:AM30) -> F 12 | D5: Race 5 | T5: Calculations -- hidden for cosmetic reasons | AM5: =B4&" "&D5 -> Moonee Valley Race 5 | AS5: v | AT5: delete if scratched
B6: 3.6.11 | C6: TAB | D6: Form | E6: 15 | F6: 14 | G6: 13 | H6: 12 | I6: 11 | J6: 10 | K6: 9 | L6: 8 | M6: 7 | N6: 6 | O6: 5 | P6: 4 | Q6: 3 | R6: 2 | S6: 1 | T6: Finish Pos | U6: Points | V6: score | W6: =E6 -> 15 | X6: =F6 -> 14 | Y6: 13 | Z6: 12 | AA6: 11 | AB6: 10 | AC6: 9 | AD6: 8 | AE6: 7 | AF6: 6 | AG6: =O6 -> 5 | AH6: =P6 -> 4 | AI6: =Q6 -> 3 | AJ6: =R6 -> 2 | AK6: =S6 -> 1 | AL6: Top 4 | AM6: Analysis | AN6: BM Price | AO6: Rank | AR6: > | AS6: No | AT6: Last 10 | AU6: Horse | AV6: Trainer | AW6: Jockey | AX6: Wt | AY6: Bar | BE6: API | BF6: PP
C7: 1 | D7: =IF(AT7="","",AT7) ->  | E7: =IF(OR(E$6="",$D7=""),"",IF(LEN($D7)>=E$6,IF(LEFT(RIGHT($D7,E$6),1)="x","",IF(LEFT(RIGHT($D7,E$6),1)="0",10,1*LEFT(RIGHT($D7,E$6),1))),"")) ->  | T7: 1 | U7: 8 | V7: =IF(D7="","",VLOOKUP(IF(E7="",11,E7),T$7:U$17,2)+VLOOKUP(IF(F7="",11,F7),T$7:U$17,2)+VLOOKUP(IF(G7="",11,G7),T$7:U$17,2)+VLOOKUP(IF(H7="",11,H7),T$7:U$17,2)+VLOOKUP(IF(I7="",11,I7),T$7:U$17,2)+VLOOKUP(IF(J7="",11,J7),T$7:U$17,2)+VLOOKUP(IF(K7="",11,K7),T$7:U$17,2)+VLOOKUP(IF(L7="",11,L7),T$7:U$17,2)+VLOOKUP(IF(M7="",11,M7),T$7:U$17,2)+VLOOKUP(IF(N7="",11,N7),T$7:U$17,2)+VLOOKUP(IF(O7="",11,O7),T$7:U$17,2)+VLOOKUP(IF(P7="",11,P7),T$7:U$17,2)+VLOOKUP(IF(Q7="",11,Q7),T$7:U$17,2)+VLOOKUP(IF(R7="",11,R7),T$7:U$17,2)+VLOOKUP(IF(S7="",11,S7),T$7:U$17,2)) ->  | W7: =IF(E7="","",$U$32/W$6/E7) ->  | AL7: =IF(AO7>4,"",1/(AL$32/VLOOKUP(AO7,T$7:U$11,2))) ->  | AM7: =IF(V7="","",SUM(W7:AK7)+V7) ->  | AN7: =IF(AL7<>"",ROUND(1/AL7,1),IF(AL34="","",ROUND(AL34,1))) ->  | AO7: =IF(AM7="","",RANK(AM7,AM$7:AM$30)) ->  | AR7: 1 | AS7: 1 | AU7: Spirited Addition | AV7: D A Hayes | AW7: Thomas Sadler (3kg) | AX7: 60 (57) | AY7: 14 | BE7: 7 | BF7: 21
C8: 2 | D8: =IF(AT8="","",AT8) -> 3519954652 | J8: 3 | K8: 5 | L8: 1 | M8: 9 | N8: 9 | O8: 5 | P8: 4 | Q8: 6 | R8: 5 | S8: 2 | T8: 2 | U8: 5 | V8: =IF(D8="","",VLOOKUP(IF(E8="",24,E8),T$7:U$17,2)+VLOOKUP(IF(F8="",24,F8),T$7:U$17,2)+VLOOKUP(IF(G8="",24,G8),T$7:U$17,2)+VLOOKUP(IF(H8="",24,H8),T$7:U$17,2)+VLOOKUP(IF(I8="",24,I8),T$7:U$17,2)+VLOOKUP(IF(J8="",24,J8),T$7:U$17,2)+VLOOKUP(IF(K8="",24,K8),T$7:U$17,2)+VLOOKUP(IF(L8="",24,L8),T$7:U$17,2)+VLOOKUP(IF(M8="",24,M8),T$7:U$17,2)+VLOOKUP(IF(N8="",24,N8),T$7:U$17,2)+VLOOKUP(IF(O8="",24,O8),T$7:U$17,2)+VLOOKUP(IF(P8="",24,P8),T$7:U$17,2)+VLOOKUP(IF(Q8="",24,Q8),T$7:U$17,2)+VLOOKUP(IF(R8="",24,R8),T$7:U$17,2)+VLOOKUP(IF(S8="",24,S8),T$7:U$17,2)) -> 22.2 | AB8: 0.5 | AC8: 0.3333333333 | AD8: 1.875 | AE8: 0.2380952381 | AF8: 0.2777777778 | AG8: 0.6 | AH8: 0.9375 | AI8: 0.8333333333 | AJ8: 1.5 | AK8: 7.5 | AL8: =IF(AO8>4,"",1/(AL$32/VLOOKUP(AO8,T$7:U$11,2))) ->  | AM8: =IF(V8="","",SUM(W8:AK8)+V8) -> 36.79503968 | AN8: =IF(AL8<>"",ROUND(1/AL8,1),IF(AL35="","",ROUND(AL35,1))) -> 22.8 | AO8: =IF(AM8="","",RANK(AM8,AM$7:AM$30)) -> 7 | AR8: 2 | AS8: 2 | AT8: 3519954652 | AU8: Locke's Choice | AV8: R T Cleaver | AW8: B Knobel (2kg) | AX8: 59.5 (57.5) | AY8: 12 | BE8: 3.2 | BF8: 21
B9: 4.4 | C9: 3 | D9: 1202x4469x1x1 | G9: 1 | H9: 2 | I9: 10 | J9: 2 | L9: 4 | M9: 4 | N9: 6 | O9: 9 | Q9: 1 | S9: 1 | T9: 3 | U9: 3 | V9: 39.1 | Y9: 1.153846154 | Z9: 0.625 | AA9: 0.1363636364 | AB9: 0.75 | AD9: 0.46875 | AE9: 0.5357142857 | AF9: 0.4166666667 | AG9: 0.3333333333 | AI9: 5 | AK9: 15 | AL9: 0.3076923077 | AM9: 63.51967408 | AN9: =IF(AL9<>"",ROUND(1/AL9,1),IF(AL36="","",ROUND(AL36,1))) -> 3.3 | AO9: 1 | AR9: 3 | AS9: 3 | AT9: 1202x4469x1x1 | AU9: Paaratte Pat | AV9: B J McCarthy | AW9: J Mott | AX9: 59 | AY9: 13 | BE9: 6.7 | BF9: 4
C10: 4 | D10: 76x46734618 | I10: 7 | J10: 6 | L10: 4 | M10: 6 | N10: 7 | O10: 3 | P10: 4 | Q10: 6 | R10: 1 | S10: 8 | T10: 4 | U10: 2 | V10: 18.7 | AA10: 0.1948051948 | AB10: 0.25 | AD10: 0.46875 | AE10: 0.3571428571 | AF10: 0.3571428571 | AG10: 1 | AH10: 0.9375 | AI10: 0.8333333333 | AJ10: 7.5 | AK10: 1.875 | AM10: 32.47367424 | AN10: =IF(AL10<>"",ROUND(1/AL10,1),IF(AL37="","",ROUND(AL37,1))) -> 25.8 | AO10: 10 | AR10: 4 | AS10: 4 | AT10: 76x46734618 | AU10: Stratumsphere | AV10: L J Corstens | AW10: C Newitt | AX10: 59 | AY10: 4 | BE10: 4.4 | BF10: 8
C11: 5 | D11: 913214x | M11: 9 | N11: 1 | O11: 3 | P11: 2 | Q11: 1 | R11: 4 | T11: 5 | U11: 1 | V11: 26.2 | AE11: 0.2380952381 | AF11: 2.5 | AG11: 1 | AH11: 1.875 | AI11: 5 | AJ11: 1.875 | AM11: 38.68809524 | AN11: =IF(AL11<>"",ROUND(1/AL11,1),IF(AL38="","",ROUND(AL38,1))) -> 21.7 | AO11: 6 | AR11: 5 | AS11: 5 | AT11: 913214x | AU11: Cyclone Andy | AV11: P Trotter | AW11: S W Arnold | AX11: 58 | AY11: 9 | BE11: 15.4 | BF11: 5.5
C12: 6 | D12: 252781226x1 | I12: 2 | J12: 5 | K12: 2 | L12: 7 | M12: 8 | N12: 1 | O12: 2 | P12: 2 | Q12: 6 | S12: 1 | T12: 6 | U12: 0.8 | V12: 38.6 | AA12: 0.6818181818 | AB12: 0.3 | AC12: 0.8333333333 | AD12: 0.2678571429 | AE12: 0.2678571429 | AF12: 2.5 | AG12: 1.5 | AH12: 1.875 | AI12: 0.8333333333 | AK12: 15 | AL12: 0.1923076923 | AM12: 62.65919913 | AN12: =IF(AL12<>"",ROUND(1/AL12,1),IF(AL39="","",ROUND(AL39,1))) -> 5.2 | AO12: 2 | AR12: 6 | AS12: 6 | AT12: 252781226x1 | AU12: Peninsula Dane | AV12: M P Hyland | AW12: D Oliver | AX12: 58 | AY12: 8 | BE12: 5 | BF12: 8
C13: 7 | D13: 43x131 | N13: 4 | O13: 3 | Q13: 1 | R13: 3 | S13: 1 | T13: 7 | U13: 0.5 | V13: 24 | AF13: 0.625 | AG13: 1 | AI13: 5 | AJ13: 2.5 | AK13: 15 | AL13: 0.1153846154 | AM13: 48.125 | AN13: =IF(AL13<>"",ROUND(1/AL13,1),IF(AL40="","",ROUND(AL40,1))) -> 8.7 | AO13: 3 | AR13: 7 | AS13: 7 | AT13: 43x131 | AU13: Henwood | AV13: J D Sadler | AW13: M Rodd | AX13: 57.5 | AY13: 10 | BE13: 7.4 | BF13: 5
C14: 8 | D14: 0x265763701 | I14: 10 | K14: 2 | L14: 6 | M14: 5 | N14: 7 | O14: 6 | P14: 3 | Q14: 7 | R14: 10 | S14: 1 | T14: 8 | U14: 0.3 | V14: 19.8 | AA14: 0.1363636364 | AC14: 0.8333333333 | AD14: 0.3125 | AE14: 0.4285714286 | AF14: 0.3571428571 | AG14: 0.5 | AH14: 1.25 | AI14: 0.7142857143 | AJ14: 0.75 | AK14: 15 | AM14: 40.08219697 | AN14: =IF(AL14<>"",ROUND(1/AL14,1),IF(AL41="","",ROUND(AL41,1))) -> 20.9 | AO14: 5 | AR14: 8 | AS14: 8 | AT14: 0x265763701 | AU14: Shiny And New | AV14: D K Weir | AW14: M Zahra | AX14: 57.5 | AY14: 1 | BE14: 6.8 | BF14: 11
C15: 9 | D15: 4333314469x | I15: 4 | J15: 3 | K15: 3 | L15: 3 | M15: 3 | N15: 1 | O15: 4 | P15: 4 | Q15: 6 | R15: 9 | T15: 9 | U15: 0.2 | V15: 27 | AA15: 0.3409090909 | AB15: 0.5 | AC15: 0.5555555556 | AD15: 0.625 | AE15: 0.7142857143 | AF15: 2.5 | AG15: 0.75 | AH15: 0.9375 | AI15: 0.8333333333 | AJ15: 0.8333333333 | AM15: 35.58991703 | AN15: =IF(AL15<>"",ROUND(1/AL15,1),IF(AL42="","",ROUND(AL42,1))) -> 23.6 | AO15: 8 | AR15: 9 | AS15: 9 | AT15: 4333314469x | AU15: Thebarwonprince | AV15: Ms G Johnstone | AW15: Nicholas Hall | AX15: 57.5 | AY15: 11 | BE15: 2.3 | BF15: 26
C16: 10 | D16: 773606x6503 | I16: 7 | J16: 7 | K16: 3 | L16: 6 | M16: 10 | N16: 6 | P16: 6 | Q16: 5 | R16: 10 | S16: 3 | T16: 10 | U16: 0.1 | V16: 10.6 | AA16: 0.1948051948 | AB16: 0.2142857143 | AC16: 0.5555555556 | AD16: 0.3125 | AE16: 0.2142857143 | AF16: 0.4166666667 | AH16: 0.625 | AI16: 1 | AJ16: 0.75 | AK16: 5 | AM16: 19.88309885 | AN16: =IF(AL16<>"",ROUND(1/AL16,1),IF(AL43="","",ROUND(AL43,1))) -> 42.2 | AO16: 12 | AR16: 10 | AS16: 10 | AT16: 773606x6503 | AU16: La Bella Roo | AV16: Peter Boynton | AW16: L Currie | AX16: 57 | AY16: 6 | BE16: 4.1 | BF16: 26
C17: 11 | D17: 30186x1 | M17: 3 | N17: 10 | O17: 1 | P17: 8 | Q17: 6 | S17: 1 | T17: 11 | U17: 0 | V17: 20.2 | AE17: 0.7142857143 | AF17: 0.25 | AG17: 3 | AH17: 0.46875 | AI17: 0.8333333333 | AK17: 15 | AL17: 0.07692307692 | AM17: 40.46636905 | AN17: =IF(AL17<>"",ROUND(1/AL17,1),IF(AL44="","",ROUND(AL44,1))) -> 13 | AO17: 4 | AR17: 11 | AS17: 11 | AT17: 30186x1 | AU17: Arkiboum | AV17: B F Cavanough | AW17: J Bowman | AX17: 56 | AY17: 3 | BE17: 6.4 | BF17: 11
C18: 12 | D18: 90x18183368x | H18: 9 | I18: 10 | K18: 1 | L18: 8 | M18: 1 | N18: 8 | O18: 3 | P18: 3 | Q18: 6 | R18: 8 | T18: 12 | V18: 24 | Z18: 0.1388888889 | AA18: 0.1363636364 | AC18: 1.666666667 | AD18: 0.234375 | AE18: 2.142857143 | AF18: 0.3125 | AG18: 1 | AH18: 1.25 | AI18: 0.8333333333 | AJ18: 0.9375 | AM18: 32.65248467 | AN18: =IF(AL18<>"",ROUND(1/AL18,1),IF(AL45="","",ROUND(AL45,1))) -> 25.7 | AO18: 9 | AR18: 12 | AS18: 12 | AT18: 90x18183368x | AU18: Suvarna | AV18: J T O'Keefe | AW18: D Gauci | AX18: 55.5 | AY18: 15 | BE18: 3 | BF18: 31
C19: 13 | D19: 14x8793850x0 | H19: 1 | I19: 4 | K19: 8 | L19: 7 | M19: 9 | N19: 3 | O19: 8 | P19: 5 | Q19: 10 | S19: 10 | T19: 13 | V19: 15.5 | Z19: 1.25 | AA19: 0.3409090909 | AC19: 0.2083333333 | AD19: 0.2678571429 | AE19: 0.2380952381 | AF19: 0.8333333333 | AG19: 0.375 | AH19: 0.75 | AI19: 0.5 | AK19: 1.5 | AM19: 21.76352814 | AN19: =IF(AL19<>"",ROUND(1/AL19,1),IF(AL46="","",ROUND(AL46,1))) -> 38.5 | AO19: 11 | AR19: 13 | AS19: 13 | AT19: 14x8793850x0 | AU19: Rockshaft | AV19: R W Smerdon | AX19: 57 | AY19: 2 | BE19: 8.6 | BF19: 51
C20: 14 | T20: 14 | AN20: =IF(AL20<>"",ROUND(1/AL20,1),IF(AL47="","",ROUND(AL47,1))) ->  | AR20: 14 | AS20: 14 | AU20: The Counterfeiter | AV20: M W Laurie | AW20: J Noonan (1.5kg) | AX20: 57 (55.5) | AY20: 5 | BE20: 4.8 | BF20: 26
C21: 15 | T21: 15 | AN21: =IF(AL21<>"",ROUND(1/AL21,1),IF(AL48="","",ROUND(AL48,1))) ->  | AR21: 15 | AS21: 15 | AU21: Grippet | AV21: P A Healey | AW21: P Mertens | AX21: 57 | AY21: 16 | BE21: 5.1 | BF21: 13
C22: 16 | T22: 16 | AN22: =IF(AL22<>"",ROUND(1/AL22,1),IF(AL49="","",ROUND(AL49,1))) ->  | AR22: 16 | AS22: 16 | AU22: Raks McLaren | AV22: D R Jolly | AX22: 55 | AY22: 7 | BE22: 6.7 | BF22: 11
C23: 17 | E23: =IF(OR(E$6="",$D23=""),"",IF(LEN($D23)>=E$6,IF(LEFT(RIGHT($D23,E$6),1)="x","",IF(LEFT(RIGHT($D23,E$6),1)="0",10,1*LEFT(RIGHT($D23,E$6),1))),"")) ->  | T23: 17 | AN23: =IF(AL23<>"",ROUND(1/AL23,1),IF(AL50="","",ROUND(AL50,1))) ->  | AR23: 17
C24: 18 | T24: 18 | W24: =IF(E24="","",$U$32/W$6/E24) ->  | AN24: =IF(AL24<>"",ROUND(1/AL24,1),IF(AL51="","",ROUND(AL51,1))) ->  | AR24: 18
C25: 19 | T25: 19 | AN25: =IF(AL25<>"",ROUND(1/AL25,1),IF(AL52="","",ROUND(AL52,1))) ->  | AR25: 19
C26: 20 | T26: 20 | AN26: =IF(AL26<>"",ROUND(1/AL26,1),IF(AL53="","",ROUND(AL53,1))) ->  | AR26: 20
C27: 21 | T27: 21 | AN27: =IF(AL27<>"",ROUND(1/AL27,1),IF(AL54="","",ROUND(AL54,1))) ->  | AR27: 21
C28: 22 | T28: 22 | AN28: =IF(AL28<>"",ROUND(1/AL28,1),IF(AL55="","",ROUND(AL55,1))) ->  | AR28: 22
C29: 23 | T29: 23 | AN29: =IF(AL29<>"",ROUND(1/AL29,1),IF(AL56="","",ROUND(AL56,1))) ->  | AR29: 23
C30: 24 | T30: 24 | AN30: =IF(AL30<>"",ROUND(1/AL30,1),IF(AL57="","",ROUND(AL57,1))) ->  | AR30: 24
U31: weight | AL31: =SUM(AL7:AL30) -> 0.6923076923
U32: 15 | AL32: =SUM(U7:U10)-4+U11*COUNT(AM7:AM30) -> 26
S33: > | AK33: =(1-AL31)/AK59 -> 0.001192938596 | AM33: <
AK34: =IF(AO7>4,AM7,"") ->  | AL34: =IF(AK34="","",1/(AK$33*AK34)) -> 
AK35: =IF(AO8>4,AM8,"") -> 36.79503968 | AL35: =IF(AK35="","",1/(AK$33*AK35)) -> 22.78204129
AK36: =IF(AO9>4,AM9,"") ->  | AL36: =IF(AK36="","",1/(AK$33*AK36)) -> 
AK37: =IF(AO10>4,AM10,"") -> 32.47367424 | AL37: =IF(AK37="","",1/(AK$33*AK37)) -> 25.81371319
AK38: =IF(AO11>4,AM11,"") -> 38.68809524 | AL38: =IF(AK38="","",1/(AK$33*AK38)) -> 21.6672883
AK39: =IF(AO12>4,AM12,"") ->  | AL39: =IF(AK39="","",1/(AK$33*AK39)) -> 
AK40: =IF(AO13>4,AM13,"") ->  | AL40: =IF(AK40="","",1/(AK$33*AK40)) -> 
AK41: =IF(AO14>4,AM14,"") -> 40.08219697 | AL41: =IF(AK41="","",1/(AK$33*AK41)) -> 20.91367681
AK42: =IF(AO15>4,AM15,"") -> 35.58991703 | AL42: =IF(AK42="","",1/(AK$33*AK42)) -> 23.55347197
AK43: =IF(AO16>4,AM16,"") -> 19.88309885 | AL43: =IF(AK43="","",1/(AK$33*AK43)) -> 42.15973172
AK44: =IF(AO17>4,AM17,"") ->  | AL44: =IF(AK44="","",1/(AK$33*AK44)) -> 
AK45: =IF(AO18>4,AM18,"") -> 32.65248467 | AL45: =IF(AK45="","",1/(AK$33*AK45)) -> 25.67235301
AK46: =IF(AO19>4,AM19,"") -> 21.76352814 | AL46: =IF(AK46="","",1/(AK$33*AK46)) -> 38.51701378
AK47: =IF(AO20>4,AM20,"") ->  | AL47: =IF(AK47="","",1/(AK$33*AK47)) -> 
AK48: =IF(AO21>4,AM21,"") ->  | AL48: =IF(AK48="","",1/(AK$33*AK48)) -> 
AK49: =IF(AO22>4,AM22,"") ->  | AL49: =IF(AK49="","",1/(AK$33*AK49)) -> 
AK50: =IF(AO23>4,AM23,"") ->  | AL50: =IF(AK50="","",1/(AK$33*AK50)) -> 
AK51: =IF(AO24>4,AM24,"") ->  | AL51: =IF(AK51="","",1/(AK$33*AK51)) -> 
AK52: =IF(AO25>4,AM25,"") ->  | AL52: =IF(AK52="","",1/(AK$33*AK52)) -> 
AK53: =IF(AO26>4,AM26,"") ->  | AL53: =IF(AK53="","",1/(AK$33*AK53)) -> 
AK54: =IF(AO27>4,AM27,"") ->  | AL54: =IF(AK54="","",1/(AK$33*AK54)) -> 
AK55: =IF(AO28>4,AM28,"") ->  | AL55: =IF(AK55="","",1/(AK$33*AK55)) -> 
AK56: =IF(AO29>4,AM29,"") ->  | AL56: =IF(AK56="","",1/(AK$33*AK56)) -> 
AK57: =IF(AO30>4,AM30,"") ->  | AL57: =IF(AK57="","",1/(AK$33*AK57)) -> 
AK58: =IF(AO31>4,AM31,"") ->  | AL58: =IF(AK58="","",1/(AK$33*AK58)) -> 
AK59: =SUM(AK35:AK58) -> 257.9280348

Sheet Sheet6
B1: HELP
B2: FORM Analysis v2.0
B3: 02-11-2012 | S3: > | AM3: <
B4: Moonee Valley | AT4: FORM
B5: Result | C5: ="F "&COUNT(AM7:AM30) -> F 9 | D5: Race6 | T5: Calculations -- hidden for cosmetic reasons | AM5: =B4&" "&D5 -> Moonee Valley Race6 | AS5: v | AT5: delete if scratched
B6: 5.8.9 | C6: TAB | D6: Form | E6: 15 | F6: 14 | G6: 13 | H6: 12 | I6: 11 | J6: 10 | K6: 9 | L6: 8 | M6: 7 | N6: 6 | O6: 5 | P6: 4 | Q6: 3 | R6: 2 | S6: 1 | T6: Finish Pos | U6: Points | V6: score | W6: =E6 -> 15 | X6: =F6 -> 14 | Y6: 13 | Z6: 12 | AA6: 11 | AB6: 10 | AC6: 9 | AD6: 8 | AE6: 7 | AF6: 6 | AG6: =O6 -> 5 | AH6: =P6 -> 4 | AI6: =Q6 -> 3 | AJ6: =R6 -> 2 | AK6: =S6 -> 1 | AL6: Top 4 | AM6: Analysis | AN6: BM Price | AO6: Rank | AR6: > | AS6: No | AT6: Last 10 | AU6: Horse | AV6: Trainer | AW6: Jockey | AX6: Wt | AY6: Bar | BE6: API | BF6: PP
C7: 1 | D7: =IF(AT7="","",AT7) -> 2189x838x121 | E7: =IF(OR(E$6="",$D7=""),"",IF(LEN($D7)>=E$6,IF(LEFT(RIGHT($D7,E$6),1)="x","",IF(LEFT(RIGHT($D7,E$6),1)="0",10,1*LEFT(RIGHT($D7,E$6),1))),"")) ->  | H7: 2 | I7: 1 | J7: 8 | K7: 9 | M7: 8 | N7: 3 | O7: 8 | Q7: 1 | R7: 2 | S7: 1 | T7: 1 | U7: 8 | V7: =IF(D7="","",VLOOKUP(IF(E7="",11,E7),T$7:U$17,2)+VLOOKUP(IF(F7="",11,F7),T$7:U$17,2)+VLOOKUP(IF(G7="",11,G7),T$7:U$17,2)+VLOOKUP(IF(H7="",11,H7),T$7:U$17,2)+VLOOKUP(IF(I7="",11,I7),T$7:U$17,2)+VLOOKUP(IF(J7="",11,J7),T$7:U$17,2)+VLOOKUP(IF(K7="",11,K7),T$7:U$17,2)+VLOOKUP(IF(L7="",11,L7),T$7:U$17,2)+VLOOKUP(IF(M7="",11,M7),T$7:U$17,2)+VLOOKUP(IF(N7="",11,N7),T$7:U$17,2)+VLOOKUP(IF(O7="",11,O7),T$7:U$17,2)+VLOOKUP(IF(P7="",11,P7),T$7:U$17,2)+VLOOKUP(IF(Q7="",11,Q7),T$7:U$17,2)+VLOOKUP(IF(R7="",11,R7),T$7:U$17,2)+VLOOKUP(IF(S7="",11,S7),T$7:U$17,2)) -> 38.1 | W7: =IF(E7="","",$U$32/W$6/E7) ->  | Z7: 0.625 | AA7: 1.363636364 | AB7: 0.1875 | AC7: 0.1851851852 | AE7: 0.2678571429 | AF7: 0.8333333333 | AG7: 0.375 | AI7: 5 | AJ7: 3.75 | AK7: 15 | AL7: =IF(AO7>4,"",1/(AL$32/VLOOKUP(AO7,T$7:U$11,2))) -> 0.347826087 | AM7: =IF(V7="","",SUM(W7:AK7)+V7) -> 65.68751203 | AN7: =IF(AL7<>"",ROUND(1/AL7,1),IF(AL34="","",ROUND(AL34,1))) -> 2.9 | AO7: =IF(AM7="","",RANK(AM7,AM$7:AM$30)) -> 1 | AR7: 1 | AS7: 1 | AT7: 2189x838x121 | AU7: Sabres | AV7: Anthony Freedman | AW7: S W Arnold | AX7: 60 | AY7: 3 | BE7: 8.5 | BF7: 3.5
C8: 2 | D8: =IF(AT8="","",AT8) -> 212117x5253x | H8: 2 | I8: 1 | J8: 2 | K8: 1 | L8: 1 | M8: 7 | O8: 5 | P8: 2 | Q8: 5 | R8: 3 | T8: 2 | U8: 5 | V8: =IF(D8="","",VLOOKUP(IF(E8="",24,E8),T$7:U$17,2)+VLOOKUP(IF(F8="",24,F8),T$7:U$17,2)+VLOOKUP(IF(G8="",24,G8),T$7:U$17,2)+VLOOKUP(IF(H8="",24,H8),T$7:U$17,2)+VLOOKUP(IF(I8="",24,I8),T$7:U$17,2)+VLOOKUP(IF(J8="",24,J8),T$7:U$17,2)+VLOOKUP(IF(K8="",24,K8),T$7:U$17,2)+VLOOKUP(IF(L8="",24,L8),T$7:U$17,2)+VLOOKUP(IF(M8="",24,M8),T$7:U$17,2)+VLOOKUP(IF(N8="",24,N8),T$7:U$17,2)+VLOOKUP(IF(O8="",24,O8),T$7:U$17,2)+VLOOKUP(IF(P8="",24,P8),T$7:U$17,2)+VLOOKUP(IF(Q8="",24,Q8),T$7:U$17,2)+VLOOKUP(IF(R8="",24,R8),T$7:U$17,2)+VLOOKUP(IF(S8="",24,S8),T$7:U$17,2)) -> 44.5 | Z8: 0.625 | AA8: 1.363636364 | AB8: 0.75 | AC8: 1.666666667 | AD8: 1.875 | AE8: 0.306122449 | AG8: 0.6 | AH8: 1.875 | AI8: 1 | AJ8: 2.5 | AL8: =IF(AO8>4,"",1/(AL$32/VLOOKUP(AO8,T$7:U$11,2))) -> 0.08695652174 | AM8: =IF(V8="","",SUM(W8:AK8)+V8) -> 57.06142548 | AN8: =IF(AL8<>"",ROUND(1/AL8,1),IF(AL35="","",ROUND(AL35,1))) -> 11.5 | AO8: =IF(AM8="","",RANK(AM8,AM$7:AM$30)) -> 4 | AR8: 2 | AS8: 2 | AT8: 212117x5253x | AU8: Snitza | AV8: R G Hore-Lacy | AW8: C Newitt | AX8: 59.5 | AY8: 4 | BE8: 6.9 | BF8: 15
C9: 3 | D9: 033x700900x0 | H9: 10 | I9: 3 | J9: 3 | L9: 7 | M9: 10 | N9: 10 | O9: 9 | P9: 10 | Q9: 10 | S9: 10 | T9: 3 | U9: 3 | V9: 7.3 | Z9: 0.125 | AA9: 0.4545454545 | AB9: 0.5 | AD9: 0.2678571429 | AE9: 0.2142857143 | AF9: 0.25 | AG9: 0.3333333333 | AH9: 0.375 | AI9: 0.5 | AK9: 1.5 | AM9: 11.82002165 | AN9: =IF(AL9<>"",ROUND(1/AL9,1),IF(AL36="","",ROUND(AL36,1))) -> 66.4 | AO9: 9 | AR9: 3 | AS9: 3 | AT9: 033x700900x0 | AU9: Allanthus | AV9: B L Jenkins | AW9: B Wallace (3kg) | AX9: 59 (56) | AY9: 10 | BE9: 3.8 | BF9: 51
C10: 4 | D10: 213111080x | J10: 2 | K10: 1 | L10: 3 | M10: 1 | N10: 1 | O10: 1 | P10: 10 | Q10: 8 | R10: 10 | T10: 4 | U10: 2 | V10: 40.5 | AB10: 0.75 | AC10: 1.666666667 | AD10: 0.625 | AE10: 2.142857143 | AF10: 2.5 | AG10: 3 | AH10: 0.375 | AI10: 0.625 | AJ10: 0.75 | AM10: 52.93452381 | AN10: =IF(AL10<>"",ROUND(1/AL10,1),IF(AL37="","",ROUND(AL37,1))) -> 14.8 | AO10: 5 | AR10: 4 | AS10: 4 | AT10: 213111080x | AU10: Angelology | AV10: K T Myers | AW10: J Noonan (1.5kg) | AX10: 57 (55.5) | AY10: 5 | BE10: 1.8 | BF10: 7
B11: 13 | C11: 5 | D11: 5120646844 | J11: 5 | K11: 1 | L11: 2 | M11: 10 | N11: 6 | O11: 4 | P11: 6 | Q11: 8 | R11: 4 | S11: 4 | T11: 5 | U11: 1 | V11: 22 | AB11: 0.3 | AC11: 1.666666667 | AD11: 0.9375 | AE11: 0.2142857143 | AF11: 0.4166666667 | AG11: 0.75 | AH11: 0.625 | AI11: 0.625 | AJ11: 1.875 | AK11: 3.75 | AM11: 33.16011905 | AN11: =IF(AL11<>"",ROUND(1/AL11,1),IF(AL38="","",ROUND(AL38,1))) -> 23.7 | AO11: 7 | AR11: 5 | AS11: 5 | AT11: 5120646844 | AU11: Eight Cards | AV11: R T Cleaver | AW11: M J Walker | AX11: 57 | AY11: 6 | BE11: 3.5 | BF11: 7
C12: 6 | T12: 6 | U12: 0.8 | AN12: =IF(AL12<>"",ROUND(1/AL12,1),IF(AL39="","",ROUND(AL39,1))) ->  | AR12: 6 | AS12: 6 | AU12: Grand Sunday | AV12: J D Sadler | AW12: M Rodd | AX12: 55 | AY12: 8 | BE12: 2.1 | BF12: 7
C13: 7 | D13: 12x62313225 | I13: 1 | J13: 2 | L13: 6 | M13: 2 | N13: 3 | O13: 1 | P13: 3 | Q13: 2 | R13: 2 | S13: 5 | T13: 7 | U13: 0.5 | V13: 43.8 | AA13: 1.363636364 | AB13: 0.75 | AD13: 0.3125 | AE13: 1.071428571 | AF13: 0.8333333333 | AG13: 3 | AH13: 1.25 | AI13: 2.5 | AJ13: 3.75 | AK13: 3 | AL13: 0.2173913043 | AM13: 61.63089827 | AN13: =IF(AL13<>"",ROUND(1/AL13,1),IF(AL40="","",ROUND(AL40,1))) -> 4.6 | AO13: 2 | AR13: 7 | AS13: 7 | AT13: 12x62313225 | AU13: Street Crier | AV13: M W Young | AW13: Dean Holland | AX13: 55 | AY13: 1 | BE13: 3 | BF13: 3.8
C14: 8 | D14: 71978x33164 | I14: 7 | J14: 1 | K14: 9 | L14: 7 | M14: 8 | O14: 3 | P14: 3 | Q14: 1 | R14: 6 | S14: 4 | T14: 8 | U14: 0.3 | V14: 26.3 | AA14: 0.1948051948 | AB14: 1.5 | AC14: 0.1851851852 | AD14: 0.2678571429 | AE14: 0.2678571429 | AG14: 1 | AH14: 1.25 | AI14: 5 | AJ14: 1.25 | AK14: 3.75 | AM14: 40.96570467 | AN14: =IF(AL14<>"",ROUND(1/AL14,1),IF(AL41="","",ROUND(AL41,1))) -> 19.2 | AO14: 6 | AR14: 8 | AS14: 8 | AT14: 71978x33164 | AU14: Meteor Shower | AV14: Jackson Pallot | AW14: Ms R Williams (3kg) | AX14: 55 (52) | AY14: 2 | BE14: 2.5 | BF14: 15
C15: 9 | D15: 22122241x58 | I15: 2 | J15: 2 | K15: 1 | L15: 2 | M15: 2 | N15: 2 | O15: 4 | P15: 1 | R15: 5 | S15: 8 | T15: 9 | U15: 0.2 | V15: 44.3 | AA15: 0.6818181818 | AB15: 0.75 | AC15: 1.666666667 | AD15: 0.9375 | AE15: 1.071428571 | AF15: 1.25 | AG15: 0.75 | AH15: 3.75 | AJ15: 1.5 | AK15: 1.875 | AL15: 0.1304347826 | AM15: 58.53241342 | AN15: =IF(AL15<>"",ROUND(1/AL15,1),IF(AL42="","",ROUND(AL42,1))) -> 7.7 | AO15: 3 | AR15: 9 | AS15: 9 | AT15: 22122241x58 | AU15: Northern Jet | AV15: L J Corstens | AW15: D Oliver | AX15: 55 | AY15: 9 | BE15: 2.8 | BF15: 5.5
C16: 10 | D16: 6472302x355 | I16: 6 | J16: 4 | K16: 7 | L16: 2 | M16: 3 | N16: 10 | O16: 2 | Q16: 3 | R16: 5 | S16: 5 | T16: 10 | U16: 0.1 | V16: 21.4 | AA16: 0.2272727273 | AB16: 0.375 | AC16: 0.2380952381 | AD16: 0.9375 | AE16: 0.7142857143 | AF16: 0.25 | AG16: 1.5 | AI16: 1.666666667 | AJ16: 1.5 | AK16: 3 | AM16: 31.80882035 | AN16: =IF(AL16<>"",ROUND(1/AL16,1),IF(AL43="","",ROUND(AL43,1))) -> 24.7 | AO16: 8 | AR16: 10 | AS16: 10 | AT16: 6472302x355 | AU16: Dangarway | AV16: Ms M Ballantine | AW16: L Currie | AX16: 55 | AY16: 7 | BE16: 2.1 | BF16: 21
C17: 11 | T17: 11 | U17: 0 | AN17: =IF(AL17<>"",ROUND(1/AL17,1),IF(AL44="","",ROUND(AL44,1))) ->  | AR17: 11
C18: 12 | T18: 12 | AN18: =IF(AL18<>"",ROUND(1/AL18,1),IF(AL45="","",ROUND(AL45,1))) ->  | AR18: 12
C19: 13 | T19: 13 | AN19: =IF(AL19<>"",ROUND(1/AL19,1),IF(AL46="","",ROUND(AL46,1))) ->  | AR19: 13
C20: 14 | T20: 14 | AN20: =IF(AL20<>"",ROUND(1/AL20,1),IF(AL47="","",ROUND(AL47,1))) ->  | AR20: 14
C21: 15 | T21: 15 | AN21: =IF(AL21<>"",ROUND(1/AL21,1),IF(AL48="","",ROUND(AL48,1))) ->  | AR21: 15
C22: 16 | T22: 16 | AN22: =IF(AL22<>"",ROUND(1/AL22,1),IF(AL49="","",ROUND(AL49,1))) ->  | AR22: 16
C23: 17 | E23: =IF(OR(E$6="",$D23=""),"",IF(LEN($D23)>=E$6,IF(LEFT(RIGHT($D23,E$6),1)="x","",IF(LEFT(RIGHT($D23,E$6),1)="0",10,1*LEFT(RIGHT($D23,E$6),1))),"")) ->  | T23: 17 | AN23: =IF(AL23<>"",ROUND(1/AL23,1),IF(AL50="","",ROUND(AL50,1))) ->  | AR23: 17
C24: 18 | T24: 18 | W24: =IF(E24="","",$U$32/W$6/E24) ->  | AN24: =IF(AL24<>"",ROUND(1/AL24,1),IF(AL51="","",ROUND(AL51,1))) ->  | AR24: 18
C25: 19 | T25: 19 | AN25: =IF(AL25<>"",ROUND(1/AL25,1),IF(AL52="","",ROUND(AL52,1))) ->  | AR25: 19
C26: 20 | T26: 20 | AN26: =IF(AL26<>"",ROUND(1/AL26,1),IF(AL53="","",ROUND(AL53,1))) ->  | AR26: 20
C27: 21 | T27: 21 | AN27: =IF(AL27<>"",ROUND(1/AL27,1),IF(AL54="","",ROUND(AL54,1))) ->  | AR27: 21
C28: 22 | T28: 22 | AN28: =IF(AL28<>"",ROUND(1/AL28,1),IF(AL55="","",ROUND(AL55,1))) ->  | AR28: 22
C29: 23 | T29: 23 | AN29: =IF(AL29<>"",ROUND(1/AL29,1),IF(AL56="","",ROUND(AL56,1))) ->  | AR29: 23
C30: 24 | T30: 24 | AN30: =IF(AL30<>"",ROUND(1/AL30,1),IF(AL57="","",ROUND(AL57,1))) ->  | AR30: 24
U31: weight | AL31: =SUM(AL7:AL30) -> 0.7826086957
U32: 15 | AL32: =SUM(U7:U10)-4+U11*COUNT(AM7:AM30) -> 23
S33: > | AK33: =(1-AL31)/AK59 -> 0.001273609096 | AM33: <
AK34: =IF(AO7>4,AM7,"") ->  | AL34: =IF(AK34="","",1/(AK$33*AK34)) -> 
AK35: =IF(AO8>4,AM8,"") ->  | AL35: =IF(AK35="","",1/(AK$33*AK35)) -> 
AK36: =IF(AO9>4,AM9,"") -> 11.82002165 | AL36: =IF(AK36="","",1/(AK$33*AK36)) -> 66.42714331
AK37: =IF(AO10>4,AM10,"") -> 52.93452381 | AL37: =IF(AK37="","",1/(AK$33*AK37)) -> 14.83285794
AK38: =IF(AO11>4,AM11,"") -> 33.16011905 | AL38: =IF(AK38="","",1/(AK$33*AK38)) -> 23.67814997
AK39: =IF(AO12>4,AM12,"") ->  | AL39: =IF(AK39="","",1/(AK$33*AK39)) -> 
AK40: =IF(AO13>4,AM13,"") ->  | AL40: =IF(AK40="","",1/(AK$33*AK40)) -> 
AK41: =IF(AO14>4,AM14,"") -> 40.96570467 | AL41: =IF(AK41="","",1/(AK$33*AK41)) -> 19.16652669
AK42: =IF(AO15>4,AM15,"") ->  | AL42: =IF(AK42="","",1/(AK$33*AK42)) -> 
AK43: =IF(AO16>4,AM16,"") -> 31.80882035 | AL43: =IF(AK43="","",1/(AK$33*AK43)) -> 24.68404245
AK44: =IF(AO17>4,AM17,"") ->  | AL44: =IF(AK44="","",1/(AK$33*AK44)) -> 
AK45: =IF(AO18>4,AM18,"") ->  | AL45: =IF(AK45="","",1/(AK$33*AK45)) -> 
AK46: =IF(AO19>4,AM19,"") ->  | AL46: =IF(AK46="","",1/(AK$33*AK46)) -> 
AK47: =IF(AO20>4,AM20,"") ->  | AL47: =IF(AK47="","",1/(AK$33*AK47)) -> 
AK48: =IF(AO21>4,AM21,"") ->  | AL48: =IF(AK48="","",1/(AK$33*AK48)) -> 
AK49: =IF(AO22>4,AM22,"") ->  | AL49: =IF(AK49="","",1/(AK$33*AK49)) -> 
AK50: =IF(AO23>4,AM23,"") ->  | AL50: =IF(AK50="","",1/(AK$33*AK50)) -> 
AK51: =IF(AO24>4,AM24,"") ->  | AL51: =IF(AK51="","",1/(AK$33*AK51)) -> 
AK52: =IF(AO25>4,AM25,"") ->  | AL52: =IF(AK52="","",1/(AK$33*AK52)) -> 
AK53: =IF(AO26>4,AM26,"") ->  | AL53: =IF(AK53="","",1/(AK$33*AK53)) -> 
AK54: =IF(AO27>4,AM27,"") ->  | AL54: =IF(AK54="","",1/(AK$33*AK54)) -> 
AK55: =IF(AO28>4,AM28,"") ->  | AL55: =IF(AK55="","",1/(AK$33*AK55)) -> 
AK56: =IF(AO29>4,AM29,"") ->  | AL56: =IF(AK56="","",1/(AK$33*AK56)) -> 
AK57: =IF(AO30>4,AM30,"") ->  | AL57: =IF(AK57="","",1/(AK$33*AK57)) -> 
AK58: =IF(AO31>4,AM31,"") ->  | AL58: =IF(AK58="","",1/(AK$33*AK58)) -> 
AK59: =SUM(AK35:AK58) -> 170.6891895

Sheet Sheet7
B1: HELP
B2: FORM Analysis v2.0
B3: 02-11-2012 | S3: > | AM3: <
B4: Moonee Valley | AT4: FORM
B5: Result | C5: ="F "&COUNT(AM7:AM30) -> F 10 | D5: Race7 | T5: Calculations -- hidden for cosmetic reasons | AM5: =B4&" "&D5 -> Moonee Valley Race7 | AS5: v | AT5: delete if scratched
B6: 7.5.3 | C6: TAB | D6: Form | E6: 15 | F6: 14 | G6: 13 | H6: 12 | I6: 11 | J6: 10 | K6: 9 | L6: 8 | M6: 7 | N6: 6 | O6: 5 | P6: 4 | Q6: 3 | R6: 2 | S6: 1 | T6: Finish Pos | U6: Points | V6: score | W6: =E6 -> 15 | X6: =F6 -> 14 | Y6: 13 | Z6: 12 | AA6: 11 | AB6: 10 | AC6: 9 | AD6: 8 | AE6: 7 | AF6: 6 | AG6: =O6 -> 5 | AH6: =P6 -> 4 | AI6: =Q6 -> 3 | AJ6: =R6 -> 2 | AK6: =S6 -> 1 | AL6: Top 4 | AM6: Analysis | AN6: BM Price | AO6: Rank | AR6: > | AS6: No | AT6: Last 10 | AU6: Horse | AV6: Trainer | AW6: Jockey | AX6: Wt | AY6: Bar | BE6: API | BF6: PP
C7: 1 | D7: =IF(AT7="","",AT7) -> 2189x838x121 | E7: =IF(OR(E$6="",$D7=""),"",IF(LEN($D7)>=E$6,IF(LEFT(RIGHT($D7,E$6),1)="x","",IF(LEFT(RIGHT($D7,E$6),1)="0",10,1*LEFT(RIGHT($D7,E$6),1))),"")) ->  | H7: 2 | I7: 1 | J7: 8 | K7: 9 | M7: 8 | N7: 3 | O7: 8 | Q7: 1 | R7: 2 | S7: 1 | T7: 1 | U7: 8 | V7: =IF(D7="","",VLOOKUP(IF(E7="",11,E7),T$7:U$17,2)+VLOOKUP(IF(F7="",11,F7),T$7:U$17,2)+VLOOKUP(IF(G7="",11,G7),T$7:U$17,2)+VLOOKUP(IF(H7="",11,H7),T$7:U$17,2)+VLOOKUP(IF(I7="",11,I7),T$7:U$17,2)+VLOOKUP(IF(J7="",11,J7),T$7:U$17,2)+VLOOKUP(IF(K7="",11,K7),T$7:U$17,2)+VLOOKUP(IF(L7="",11,L7),T$7:U$17,2)+VLOOKUP(IF(M7="",11,M7),T$7:U$17,2)+VLOOKUP(IF(N7="",11,N7),T$7:U$17,2)+VLOOKUP(IF(O7="",11,O7),T$7:U$17,2)+VLOOKUP(IF(P7="",11,P7),T$7:U$17,2)+VLOOKUP(IF(Q7="",11,Q7),T$7:U$17,2)+VLOOKUP(IF(R7="",11,R7),T$7:U$17,2)+VLOOKUP(IF(S7="",11,S7),T$7:U$17,2)) -> 38.1 | W7: =IF(E7="","",$U$32/W$6/E7) ->  | Z7: 0.625 | AA7: 1.363636364 | AB7: 0.1875 | AC7: 0.1851851852 | AE7: 0.2678571429 | AF7: 0.8333333333 | AG7: 0.375 | AI7: 5 | AJ7: 3.75 | AK7: 15 | AL7: =IF(AO7>4,"",1/(AL$32/VLOOKUP(AO7,T$7:U$11,2))) -> 0.3333333333 | AM7: =IF(V7="","",SUM(W7:AK7)+V7) -> 65.68751203 | AN7: =IF(AL7<>"",ROUND(1/AL7,1),IF(AL34="","",ROUND(AL34,1))) -> 3 | AO7: =IF(AM7="","",RANK(AM7,AM$7:AM$30)) -> 1 | AR7: 1 | AS7: 1 | AT7: 2189x838x121 | AU7: Sabres | AV7: Anthony Freedman | AW7: S W Arnold | AX7: 60 | AY7: 3 | BE7: 8.5 | BF7: 3.5
C8: 2 | D8: =IF(AT8="","",AT8) -> 212117x5253x | H8: 2 | I8: 1 | J8: 2 | K8: 1 | L8: 1 | M8: 7 | O8: 5 | P8: 2 | Q8: 5 | R8: 3 | T8: 2 | U8: 5 | V8: =IF(D8="","",VLOOKUP(IF(E8="",24,E8),T$7:U$17,2)+VLOOKUP(IF(F8="",24,F8),T$7:U$17,2)+VLOOKUP(IF(G8="",24,G8),T$7:U$17,2)+VLOOKUP(IF(H8="",24,H8),T$7:U$17,2)+VLOOKUP(IF(I8="",24,I8),T$7:U$17,2)+VLOOKUP(IF(J8="",24,J8),T$7:U$17,2)+VLOOKUP(IF(K8="",24,K8),T$7:U$17,2)+VLOOKUP(IF(L8="",24,L8),T$7:U$17,2)+VLOOKUP(IF(M8="",24,M8),T$7:U$17,2)+VLOOKUP(IF(N8="",24,N8),T$7:U$17,2)+VLOOKUP(IF(O8="",24,O8),T$7:U$17,2)+VLOOKUP(IF(P8="",24,P8),T$7:U$17,2)+VLOOKUP(IF(Q8="",24,Q8),T$7:U$17,2)+VLOOKUP(IF(R8="",24,R8),T$7:U$17,2)+VLOOKUP(IF(S8="",24,S8),T$7:U$17,2)) -> 44.5 | Z8: 0.625 | AA8: 1.363636364 | AB8: 0.75 | AC8: 1.666666667 | AD8: 1.875 | AE8: 0.306122449 | AG8: 0.6 | AH8: 1.875 | AI8: 1 | AJ8: 2.5 | AL8: =IF(AO8>4,"",1/(AL$32/VLOOKUP(AO8,T$7:U$11,2))) -> 0.08333333333 | AM8: =IF(V8="","",SUM(W8:AK8)+V8) -> 57.06142548 | AN8: =IF(AL8<>"",ROUND(1/AL8,1),IF(AL35="","",ROUND(AL35,1))) -> 12 | AO8: =IF(AM8="","",RANK(AM8,AM$7:AM$30)) -> 4 | AR8: 2 | AS8: 2 | AT8: 212117x5253x | AU8: Snitza | AV8: R G Hore-Lacy | AW8: C Newitt | AX8: 59.5 | AY8: 4 | BE8: 6.9 | BF8: 15
C9: 3 | D9: 033x700900x0 | H9: 10 | I9: 3 | J9: 3 | L9: 7 | M9: 10 | N9: 10 | O9: 9 | P9: 10 | Q9: 10 | S9: 10 | T9: 3 | U9: 3 | V9: 7.3 | Z9: 0.125 | AA9: 0.4545454545 | AB9: 0.5 | AD9: 0.2678571429 | AE9: 0.2142857143 | AF9: 0.25 | AG9: 0.3333333333 | AH9: 0.375 | AI9: 0.5 | AK9: 1.5 | AM9: 11.82002165 | AN9: =IF(AL9<>"",ROUND(1/AL9,1),IF(AL36="","",ROUND(AL36,1))) -> 72.6 | AO9: 10 | AR9: 3 | AS9: 3 | AT9: 033x700900x0 | AU9: Allanthus | AV9: B L Jenkins | AW9: B Wallace (3kg) | AX9: 59 (56) | AY9: 10 | BE9: 3.8 | BF9: 51
C10: 4 | D10: 213111080x | J10: 2 | K10: 1 | L10: 3 | M10: 1 | N10: 1 | O10: 1 | P10: 10 | Q10: 8 | R10: 10 | T10: 4 | U10: 2 | V10: 40.5 | AB10: 0.75 | AC10: 1.666666667 | AD10: 0.625 | AE10: 2.142857143 | AF10: 2.5 | AG10: 3 | AH10: 0.375 | AI10: 0.625 | AJ10: 0.75 | AM10: 52.93452381 | AN10: =IF(AL10<>"",ROUND(1/AL10,1),IF(AL37="","",ROUND(AL37,1))) -> 16.2 | AO10: 5 | AR10: 4 | AS10: 4 | AT10: 213111080x | AU10: Angelology | AV10: K T Myers | AW10: J Noonan (1.5kg) | AX10: 57 (55.5) | AY10: 5 | BE10: 1.8 | BF10: 7
C11: 5 | D11: 5120646844 | J11: 5 | K11: 1 | L11: 2 | M11: 10 | N11: 6 | O11: 4 | P11: 6 | Q11: 8 | R11: 4 | S11: 4 | T11: 5 | U11: 1 | V11: 22 | AB11: 0.3 | AC11: 1.666666667 | AD11: 0.9375 | AE11: 0.2142857143 | AF11: 0.4166666667 | AG11: 0.75 | AH11: 0.625 | AI11: 0.625 | AJ11: 1.875 | AK11: 3.75 | AM11: 33.16011905 | AN11: =IF(AL11<>"",ROUND(1/AL11,1),IF(AL38="","",ROUND(AL38,1))) -> 25.9 | AO11: 8 | AR11: 5 | AS11: 5 | AT11: 5120646844 | AU11: Eight Cards | AV11: R T Cleaver | AW11: M J Walker | AX11: 57 | AY11: 6 | BE11: 3.5 | BF11: 7
C12: 6 | D12: 7x05x242115x8 | G12: 7 | I12: 10 | J12: 5 | L12: 2 | M12: 4 | N12: 2 | O12: 1 | P12: 1 | Q12: 5 | S12: 8 | T12: 6 | U12: 0.8 | V12: 30.9 | Y12: 0.1648351648 | AA12: 0.1363636364 | AB12: 0.3 | AD12: 0.9375 | AE12: 0.5357142857 | AF12: 1.25 | AG12: 3 | AH12: 3.75 | AI12: 1 | AK12: 1.875 | AM12: 43.84941309 | AN12: =IF(AL12<>"",ROUND(1/AL12,1),IF(AL39="","",ROUND(AL39,1))) -> 19.6 | AO12: 6 | AR12: 6 | AS12: 6 | AT12: 7x05x242115x8 | AU12: Grand Sunday | AV12: J D Sadler | AW12: M Rodd | AX12: 55 | AY12: 8 | BE12: 2.1 | BF12: 7
B13: 4.8 | C13: 7 | D13: 12x62313225 | I13: 1 | J13: 2 | L13: 6 | M13: 2 | N13: 3 | O13: 1 | P13: 3 | Q13: 2 | R13: 2 | S13: 5 | T13: 7 | U13: 0.5 | V13: 43.8 | AA13: 1.363636364 | AB13: 0.75 | AD13: 0.3125 | AE13: 1.071428571 | AF13: 0.8333333333 | AG13: 3 | AH13: 1.25 | AI13: 2.5 | AJ13: 3.75 | AK13: 3 | AL13: 0.2083333333 | AM13: 61.63089827 | AN13: =IF(AL13<>"",ROUND(1/AL13,1),IF(AL40="","",ROUND(AL40,1))) -> 4.8 | AO13: 2 | AR13: 7 | AS13: 7 | AT13: 12x62313225 | AU13: Street Crier | AV13: M W Young | AW13: Dean Holland | AX13: 55 | AY13: 1 | BE13: 3 | BF13: 3.8
C14: 8 | D14: 71978x33164 | I14: 7 | J14: 1 | K14: 9 | L14: 7 | M14: 8 | O14: 3 | P14: 3 | Q14: 1 | R14: 6 | S14: 4 | T14: 8 | U14: 0.3 | V14: 26.3 | AA14: 0.1948051948 | AB14: 1.5 | AC14: 0.1851851852 | AD14: 0.2678571429 | AE14: 0.2678571429 | AG14: 1 | AH14: 1.25 | AI14: 5 | AJ14: 1.25 | AK14: 3.75 | AM14: 40.96570467 | AN14: =IF(AL14<>"",ROUND(1/AL14,1),IF(AL41="","",ROUND(AL41,1))) -> 20.9 | AO14: 7 | AR14: 8 | AS14: 8 | AT14: 71978x33164 | AU14: Meteor Shower | AV14: Jackson Pallot | AW14: Ms R Williams (3kg) | AX14: 55 (52) | AY14: 2 | BE14: 2.5 | BF14: 15
C15: 9 | D15: 22122241x58 | I15: 2 | J15: 2 | K15: 1 | L15: 2 | M15: 2 | N15: 2 | O15: 4 | P15: 1 | R15: 5 | S15: 8 | T15: 9 | U15: 0.2 | V15: 44.3 | AA15: 0.6818181818 | AB15: 0.75 | AC15: 1.666666667 | AD15: 0.9375 | AE15: 1.071428571 | AF15: 1.25 | AG15: 0.75 | AH15: 3.75 | AJ15: 1.5 | AK15: 1.875 | AL15: 0.125 | AM15: 58.53241342 | AN15: =IF(AL15<>"",ROUND(1/AL15,1),IF(AL42="","",ROUND(AL42,1))) -> 8 | AO15: 3 | AR15: 9 | AS15: 9 | AT15: 22122241x58 | AU15: Northern Jet | AV15: L J Corstens | AW15: D Oliver | AX15: 55 | AY15: 9 | BE15: 2.8 | BF15: 5.5
C16: 10 | D16: 6472302x355 | I16: 6 | J16: 4 | K16: 7 | L16: 2 | M16: 3 | N16: 10 | O16: 2 | Q16: 3 | R16: 5 | S16: 5 | T16: 10 | U16: 0.1 | V16: 21.4 | AA16: 0.2272727273 | AB16: 0.375 | AC16: 0.2380952381 | AD16: 0.9375 | AE16: 0.7142857143 | AF16: 0.25 | AG16: 1.5 | AI16: 1.666666667 | AJ16: 1.5 | AK16: 3 | AM16: 31.80882035 | AN16: =IF(AL16<>"",ROUND(1/AL16,1),IF(AL43="","",ROUND(AL43,1))) -> 27 | AO16: 9 | AR16: 10 | AS16: 10 | AT16: 6472302x355 | AU16: Dangarway | AV16: Ms M Ballantine | AW16: L Currie | AX16: 55 | AY16: 7 | BE16: 2.1 | BF16: 21
C17: 11 | T17: 11 | U17: 0 | AN17: =IF(AL17<>"",ROUND(1/AL17,1),IF(AL44="","",ROUND(AL44,1))) ->  | AR17: 11
C18: 12 | T18: 12 | AN18: =IF(AL18<>"",ROUND(1/AL18,1),IF(AL45="","",ROUND(AL45,1))) ->  | AR18: 12
C19: 13 | T19: 13 | AN19: =IF(AL19<>"",ROUND(1/AL19,1),IF(AL46="","",ROUND(AL46,1))) ->  | AR19: 13
C20: 14 | T20: 14 | AN20: =IF(AL20<>"",ROUND(1/AL20,1),IF(AL47="","",ROUND(AL47,1))) ->  | AR20: 14
C21: 15 | T21: 15 | AN21: =IF(AL21<>"",ROUND(1/AL21,1),IF(AL48="","",ROUND(AL48,1))) ->  | AR21: 15
C22: 16 | T22: 16 | AN22: =IF(AL22<>"",ROUND(1/AL22,1),IF(AL49="","",ROUND(AL49,1))) ->  | AR22: 16
C23: 17 | E23: =IF(OR(E$6="",$D23=""),"",IF(LEN($D23)>=E$6,IF(LEFT(RIGHT($D23,E$6),1)="x","",IF(LEFT(RIGHT($D23,E$6),1)="0",10,1*LEFT(RIGHT($D23,E$6),1))),"")) ->  | T23: 17 | AN23: =IF(AL23<>"",ROUND(1/AL23,1),IF(AL50="","",ROUND(AL50,1))) ->  | AR23: 17
C24: 18 | T24: 18 | W24: =IF(E24="","",$U$32/W$6/E24) ->  | AN24: =IF(AL24<>"",ROUND(1/AL24,1),IF(AL51="","",ROUND(AL51,1))) ->  | AR24: 18
C25: 19 | T25: 19 | AN25: =IF(AL25<>"",ROUND(1/AL25,1),IF(AL52="","",ROUND(AL52,1))) ->  | AR25: 19
C26: 20 | T26: 20 | AN26: =IF(AL26<>"",ROUND(1/AL26,1),IF(AL53="","",ROUND(AL53,1))) ->  | AR26: 20
C27: 21 | T27: 21 | AN27: =IF(AL27<>"",ROUND(1/AL27,1),IF(AL54="","",ROUND(AL54,1))) ->  | AR27: 21
C28: 22 | T28: 22 | AN28: =IF(AL28<>"",ROUND(1/AL28,1),IF(AL55="","",ROUND(AL55,1))) ->  | AR28: 22
C29: 23 | T29: 23 | AN29: =IF(AL29<>"",ROUND(1/AL29,1),IF(AL56="","",ROUND(AL56,1))) ->  | AR29: 23
C30: 24 | T30: 24 | AN30: =IF(AL30<>"",ROUND(1/AL30,1),IF(AL57="","",ROUND(AL57,1))) ->  | AR30: 24
U31: weight | AL31: =SUM(AL7:AL30) -> 0.75
U32: 15 | AL32: =SUM(U7:U10)-4+U11*COUNT(AM7:AM30) -> 24
S33: > | AK33: =(1-AL31)/AK59 -> 0.001165291453 | AM33: <
AK34: =IF(AO7>4,AM7,"") ->  | AL34: =IF(AK34="","",1/(AK$33*AK34)) -> 
AK35: =IF(AO8>4,AM8,"") ->  | AL35: =IF(AK35="","",1/(AK$33*AK35)) -> 
AK36: =IF(AO9>4,AM9,"") -> 11.82002165 | AL36: =IF(AK36="","",1/(AK$33*AK36)) -> 72.60176302
AK37: =IF(AO10>4,AM10,"") -> 52.93452381 | AL37: =IF(AK37="","",1/(AK$33*AK37)) -> 16.21162048
AK38: =IF(AO11>4,AM11,"") -> 33.16011905 | AL38: =IF(AK38="","",1/(AK$33*AK38)) -> 25.87911127
AK39: =IF(AO12>4,AM12,"") -> 43.84941309 | AL39: =IF(AK39="","",1/(AK$33*AK39)) -> 19.57048795
AK40: =IF(AO13>4,AM13,"") ->  | AL40: =IF(AK40="","",1/(AK$33*AK40)) -> 
AK41: =IF(AO14>4,AM14,"") -> 40.96570467 | AL41: =IF(AK41="","",1/(AK$33*AK41)) -> 20.94811788
AK42: =IF(AO15>4,AM15,"") ->  | AL42: =IF(AK42="","",1/(AK$33*AK42)) -> 
AK43: =IF(AO16>4,AM16,"") -> 31.80882035 | AL43: =IF(AK43="","",1/(AK$33*AK43)) -> 26.97850474
AK44: =IF(AO17>4,AM17,"") ->  | AL44: =IF(AK44="","",1/(AK$33*AK44)) -> 
AK45: =IF(AO18>4,AM18,"") ->  | AL45: =IF(AK45="","",1/(AK$33*AK45)) -> 
AK46: =IF(AO19>4,AM19,"") ->  | AL46: =IF(AK46="","",1/(AK$33*AK46)) -> 
AK47: =IF(AO20>4,AM20,"") ->  | AL47: =IF(AK47="","",1/(AK$33*AK47)) -> 
AK48: =IF(AO21>4,AM21,"") ->  | AL48: =IF(AK48="","",1/(AK$33*AK48)) -> 
AK49: =IF(AO22>4,AM22,"") ->  | AL49: =IF(AK49="","",1/(AK$33*AK49)) -> 
AK50: =IF(AO23>4,AM23,"") ->  | AL50: =IF(AK50="","",1/(AK$33*AK50)) -> 
AK51: =IF(AO24>4,AM24,"") ->  | AL51: =IF(AK51="","",1/(AK$33*AK51)) -> 
AK52: =IF(AO25>4,AM25,"") ->  | AL52: =IF(AK52="","",1/(AK$33*AK52)) -> 
AK53: =IF(AO26>4,AM26,"") ->  | AL53: =IF(AK53="","",1/(AK$33*AK53)) -> 
AK54: =IF(AO27>4,AM27,"") ->  | AL54: =IF(AK54="","",1/(AK$33*AK54)) -> 
AK55: =IF(AO28>4,AM28,"") ->  | AL55: =IF(AK55="","",1/(AK$33*AK55)) -> 
AK56: =IF(AO29>4,AM29,"") ->  | AL56: =IF(AK56="","",1/(AK$33*AK56)) -> 
AK57: =IF(AO30>4,AM30,"") ->  | AL57: =IF(AK57="","",1/(AK$33*AK57)) -> 
AK58: =IF(AO31>4,AM31,"") ->  | AL58: =IF(AK58="","",1/(AK$33*AK58)) -> 
AK59: =SUM(AK35:AK58) -> 214.5386026

Sheet Sheet8
B1: HELP
B2: FORM Analysis v2.0
B3: 02-11-2012 | S3: > | AM3: <
B4: Moonee Valley | AT4: FORM
B5: Result | C5: ="F "&COUNT(AM7:AM30) -> F 11 | D5: Race 8 | T5: Calculations -- hidden for cosmetic reasons | AM5: =B4&" "&D5 -> Moonee Valley Race 8 | AS5: v | AT5: delete if scratched
B6: 6.5.2 | C6: TAB | D6: Form | E6: 15 | F6: 14 | G6: 13 | H6: 12 | I6: 11 | J6: 10 | K6: 9 | L6: 8 | M6: 7 | N6: 6 | O6: 5 | P6: 4 | Q6: 3 | R6: 2 | S6: 1 | T6: Finish Pos | U6: Points | V6: score | W6: =E6 -> 15 | X6: =F6 -> 14 | Y6: 13 | Z6: 12 | AA6: 11 | AB6: 10 | AC6: 9 | AD6: 8 | AE6: 7 | AF6: 6 | AG6: =O6 -> 5 | AH6: =P6 -> 4 | AI6: =Q6 -> 3 | AJ6: =R6 -> 2 | AK6: =S6 -> 1 | AL6: Top 4 | AM6: Analysis | AN6: BM Price | AO6: Rank | AR6: > | AS6: No | AT6: Last 10 | AU6: Horse | AV6: Trainer | AW6: Jockey | AX6: Wt | AY6: Bar | BE6: API | BF6: PP
C7: 1 | D7: =IF(AT7="","",AT7) -> 3503454x115 | E7: =IF(OR(E$6="",$D7=""),"",IF(LEN($D7)>=E$6,IF(LEFT(RIGHT($D7,E$6),1)="x","",IF(LEFT(RIGHT($D7,E$6),1)="0",10,1*LEFT(RIGHT($D7,E$6),1))),"")) ->  | I7: 3 | J7: 5 | K7: 10 | L7: 3 | M7: 4 | N7: 5 | O7: 4 | Q7: 1 | R7: 1 | S7: 5 | T7: 1 | U7: 8 | V7: =IF(D7="","",VLOOKUP(IF(E7="",11,E7),T$7:U$17,2)+VLOOKUP(IF(F7="",11,F7),T$7:U$17,2)+VLOOKUP(IF(G7="",11,G7),T$7:U$17,2)+VLOOKUP(IF(H7="",11,H7),T$7:U$17,2)+VLOOKUP(IF(I7="",11,I7),T$7:U$17,2)+VLOOKUP(IF(J7="",11,J7),T$7:U$17,2)+VLOOKUP(IF(K7="",11,K7),T$7:U$17,2)+VLOOKUP(IF(L7="",11,L7),T$7:U$17,2)+VLOOKUP(IF(M7="",11,M7),T$7:U$17,2)+VLOOKUP(IF(N7="",11,N7),T$7:U$17,2)+VLOOKUP(IF(O7="",11,O7),T$7:U$17,2)+VLOOKUP(IF(P7="",11,P7),T$7:U$17,2)+VLOOKUP(IF(Q7="",11,Q7),T$7:U$17,2)+VLOOKUP(IF(R7="",11,R7),T$7:U$17,2)+VLOOKUP(IF(S7="",11,S7),T$7:U$17,2)) -> 29.1 | W7: =IF(E7="","",$U$32/W$6/E7) ->  | AA7: 0.4545454545 | AB7: 0.3 | AC7: 0.1666666667 | AD7: 0.625 | AE7: 0.5357142857 | AF7: 0.5 | AG7: 0.75 | AI7: 5 | AJ7: 7.5 | AK7: 3 | AL7: =IF(AO7>4,"",1/(AL$32/VLOOKUP(AO7,T$7:U$11,2))) ->  | AM7: =IF(V7="","",SUM(W7:AK7)+V7) -> 47.93192641 | AN7: =IF(AL7<>"",ROUND(1/AL7,1),IF(AL34="","",ROUND(AL34,1))) -> 18.9 | AO7: =IF(AM7="","",RANK(AM7,AM$7:AM$30)) -> 7 | AR7: 1 | AS7: 1 | AT7: 3503454x115 | AU7: Florets | AV7: Anthony Freedman | AW7: B Wallace (3kg) | AX7: 59 (56) | AY7: 1 | BE7: 7.9 | BF7: 5.5
C8: 2 | D8: =IF(AT8="","",AT8) -> 213723x148x | I8: 2 | J8: 1 | K8: 3 | L8: 7 | M8: 2 | N8: 3 | P8: 1 | Q8: 4 | R8: 8 | T8: 2 | U8: 5 | V8: =IF(D8="","",VLOOKUP(IF(E8="",24,E8),T$7:U$17,2)+VLOOKUP(IF(F8="",24,F8),T$7:U$17,2)+VLOOKUP(IF(G8="",24,G8),T$7:U$17,2)+VLOOKUP(IF(H8="",24,H8),T$7:U$17,2)+VLOOKUP(IF(I8="",24,I8),T$7:U$17,2)+VLOOKUP(IF(J8="",24,J8),T$7:U$17,2)+VLOOKUP(IF(K8="",24,K8),T$7:U$17,2)+VLOOKUP(IF(L8="",24,L8),T$7:U$17,2)+VLOOKUP(IF(M8="",24,M8),T$7:U$17,2)+VLOOKUP(IF(N8="",24,N8),T$7:U$17,2)+VLOOKUP(IF(O8="",24,O8),T$7:U$17,2)+VLOOKUP(IF(P8="",24,P8),T$7:U$17,2)+VLOOKUP(IF(Q8="",24,Q8),T$7:U$17,2)+VLOOKUP(IF(R8="",24,R8),T$7:U$17,2)+VLOOKUP(IF(S8="",24,S8),T$7:U$17,2)) -> 34.8 | AA8: 0.6818181818 | AB8: 1.5 | AC8: 0.5555555556 | AD8: 0.2678571429 | AE8: 1.071428571 | AF8: 0.8333333333 | AH8: 3.75 | AI8: 1.25 | AJ8: 0.9375 | AL8: =IF(AO8>4,"",1/(AL$32/VLOOKUP(AO8,T$7:U$11,2))) ->  | AM8: =IF(V8="","",SUM(W8:AK8)+V8) -> 45.64749278 | AN8: =IF(AL8<>"",ROUND(1/AL8,1),IF(AL35="","",ROUND(AL35,1))) -> 19.8 | AO8: =IF(AM8="","",RANK(AM8,AM$7:AM$30)) -> 8 | AR8: 2 | AS8: 2 | AT8: 213723x148x | AU8: Classic Elle | AV8: A J Vasil | AW8: J Bowman | AX8: 57 | AY8: 10 | BE8: 7.8 | BF8: 4.8
C9: 3 | D9: 310x218x4942 | H9: 3 | I9: 1 | J9: 10 | L9: 2 | M9: 1 | N9: 8 | P9: 4 | Q9: 9 | R9: 4 | S9: 2 | T9: 3 | U9: 3 | V9: 33.6 | Z9: 0.4166666667 | AA9: 1.363636364 | AB9: 0.15 | AD9: 0.9375 | AE9: 2.142857143 | AF9: 0.3125 | AH9: 0.9375 | AI9: 0.5555555556 | AJ9: 1.875 | AK9: 7.5 | AM9: 49.79121573 | AN9: =IF(AL9<>"",ROUND(1/AL9,1),IF(AL36="","",ROUND(AL36,1))) -> 18.2 | AO9: 6 | AR9: 3 | AS9: 3 | AT9: 310x218x4942 | AU9: Diazling | AV9: Luke Oliver | AW9: J Mott | AX9: 56.5 | AY9: 4 | BE9: 6.6
C10: 4 | D10: 23x21115 | L10: 2 | M10: 3 | O10: 2 | P10: 1 | Q10: 1 | R10: 1 | S10: 5 | T10: 4 | U10: 2 | V10: 38 | AD10: 0.9375 | AE10: 0.7142857143 | AG10: 1.5 | AH10: 3.75 | AI10: 5 | AJ10: 7.5 | AK10: 3 | AL10: 0.32 | AM10: 60.40178571 | AN10: =IF(AL10<>"",ROUND(1/AL10,1),IF(AL37="","",ROUND(AL37,1))) -> 3.1 | AO10: 1 | AR10: 4 | AS10: 4 | AT10: 23x21115 | AU10: Our Mimi | AV10: Lloyd Kennewell | AW10: M Zahra | AX10: 56.5 | AY10: 2 | BE10: 6.2 | BF10: 6
C11: 5 | D11: 1493x554x073 | H11: 1 | I11: 4 | J11: 9 | K11: 3 | M11: 5 | N11: 5 | O11: 4 | Q11: 10 | R11: 7 | S11: 3 | T11: 5 | U11: 1 | V11: 20.8 | Z11: 1.25 | AA11: 0.3409090909 | AB11: 0.1666666667 | AC11: 0.5555555556 | AE11: 0.4285714286 | AF11: 0.5 | AG11: 0.75 | AI11: 0.5 | AJ11: 1.071428571 | AK11: 5 | AM11: 31.36313131 | AN11: =IF(AL11<>"",ROUND(1/AL11,1),IF(AL38="","",ROUND(AL38,1))) -> 28.9 | AO11: 11 | AR11: 5 | AS11: 5 | AT11: 1493x554x073 | AU11: And Rock | AV11: John McArdle | AW11: J Noonan (1.5kg) | AX11: 56 (54.5) | AY11: 7 | BE11: 9.1 | BF11: 8
B12: 6 | C12: 6 | D12: 11421209x27 | I12: 1 | J12: 1 | K12: 4 | L12: 2 | M12: 1 | N12: 2 | O12: 10 | P12: 9 | R12: 2 | S12: 7 | T12: 6 | U12: 0.8 | V12: 41.8 | AA12: 1.363636364 | AB12: 1.5 | AC12: 0.4166666667 | AD12: 0.9375 | AE12: 2.142857143 | AF12: 1.25 | AG12: 0.3 | AH12: 0.4166666667 | AJ12: 3.75 | AK12: 2.142857143 | AL12: 0.12 | AM12: 56.02018398 | AN12: =IF(AL12<>"",ROUND(1/AL12,1),IF(AL39="","",ROUND(AL39,1))) -> 8.3 | AO12: 3 | AR12: 6 | AS12: 6 | AT12: 11421209x27 | AU12: Lady Antebellum | AV12: L J Corstens | AW12: Nicholas Hall | AX12: 56 | AY12: 5 | BE12: 8.4 | BF12: 6.5
C13: 7 | D13: 21x411 | N13: 2 | O13: 1 | Q13: 4 | R13: 1 | S13: 1 | T13: 7 | U13: 0.5 | V13: 31 | AF13: 1.25 | AG13: 3 | AI13: 1.25 | AJ13: 7.5 | AK13: 15 | AL13: 0.2 | AM13: 59 | AN13: =IF(AL13<>"",ROUND(1/AL13,1),IF(AL40="","",ROUND(AL40,1))) -> 5 | AO13: 2 | AR13: 7 | AS13: 7 | AT13: 21x411 | AU13: Rose Of Lincoln | AV13: D R Jolly | AW13: M Neilson | AX13: 56 | AY13: 8 | BE13: 6.2 | BF13: 6
C14: 8 | D14: 9x53137x21 | J14: 9 | L14: 5 | M14: 3 | N14: 1 | O14: 3 | P14: 7 | R14: 2 | S14: 1 | T14: 8 | U14: 0.3 | V14: 28.7 | AB14: 0.1666666667 | AD14: 0.375 | AE14: 0.7142857143 | AF14: 2.5 | AG14: 1 | AH14: 0.5357142857 | AJ14: 3.75 | AK14: 15 | AM14: 52.74166667 | AN14: =IF(AL14<>"",ROUND(1/AL14,1),IF(AL41="","",ROUND(AL41,1))) -> 17.2 | AO14: 5 | AR14: 8 | AS14: 8 | AT14: 9x53137x21 | AU14: Aneto | AV14: M, W & J Hawkes | AW14: C Newitt | AX14: 55 | AY14: 3 | BE14: 3.6 | BF14: 9
C15: 9 | D15: 61x420x33 | K15: 6 | L15: 1 | N15: 4 | O15: 2 | P15: 10 | R15: 3 | S15: 3 | T15: 9 | U15: 0.2 | V15: 21.9 | AC15: 0.2777777778 | AD15: 1.875 | AF15: 0.625 | AG15: 1.5 | AH15: 0.375 | AJ15: 2.5 | AK15: 5 | AM15: 34.05277778 | AN15: =IF(AL15<>"",ROUND(1/AL15,1),IF(AL42="","",ROUND(AL42,1))) -> 26.6 | AO15: 10 | AR15: 9 | AS15: 9 | AT15: 61x420x33 | AU15: Incredulous | AV15: S A Dwyer | AW15: M Rodd | AX15: 55 | AY15: 9 | BE15: 3.5 | BF15: 13
C16: 10 | D16: 242x1 | O16: 2 | P16: 4 | Q16: 2 | S16: 1 | T16: 10 | U16: 0.1 | V16: 20 | AG16: 1.5 | AH16: 0.9375 | AI16: 2.5 | AK16: 15 | AM16: 39.9375 | AN16: =IF(AL16<>"",ROUND(1/AL16,1),IF(AL43="","",ROUND(AL43,1))) -> 22.7 | AO16: 9 | AR16: 10 | AS16: 10 | AT16: 242x1 | AU16: More Than Smooth | AV16: M G Price | AW16: D Oliver | AX16: 55 | AY16: 11 | BE16: 6.5 | BF16: 7
C17: 11 | D17: 5x3325x113 | J17: 5 | L17: 3 | M17: 3 | N17: 2 | O17: 5 | Q17: 1 | R17: 1 | S17: 3 | T17: 11 | U17: 0 | V17: 32 | AB17: 0.3 | AD17: 0.625 | AE17: 0.7142857143 | AF17: 1.25 | AG17: 0.6 | AI17: 5 | AJ17: 7.5 | AK17: 5 | AL17: 0.08 | AM17: 52.98928571 | AN17: =IF(AL17<>"",ROUND(1/AL17,1),IF(AL44="","",ROUND(AL44,1))) -> 12.5 | AO17: 4 | AR17: 11 | AS17: 11 | AT17: 5x3325x113 | AU17: Ombra Sierra | AV17: B & S Wilde | AW17: Thomas Sadler (3kg) | AX17: 55 (52) | AY17: 6 | BE17: 2.7 | BF17: 31
C18: 12 | T18: 12 | AN18: =IF(AL18<>"",ROUND(1/AL18,1),IF(AL45="","",ROUND(AL45,1))) ->  | AR18: 12
C19: 13 | T19: 13 | AN19: =IF(AL19<>"",ROUND(1/AL19,1),IF(AL46="","",ROUND(AL46,1))) ->  | AR19: 13
C20: 14 | T20: 14 | AN20: =IF(AL20<>"",ROUND(1/AL20,1),IF(AL47="","",ROUND(AL47,1))) ->  | AR20: 14
C21: 15 | T21: 15 | AN21: =IF(AL21<>"",ROUND(1/AL21,1),IF(AL48="","",ROUND(AL48,1))) ->  | AR21: 15
C22: 16 | T22: 16 | AN22: =IF(AL22<>"",ROUND(1/AL22,1),IF(AL49="","",ROUND(AL49,1))) ->  | AR22: 16
C23: 17 | E23: =IF(OR(E$6="",$D23=""),"",IF(LEN($D23)>=E$6,IF(LEFT(RIGHT($D23,E$6),1)="x","",IF(LEFT(RIGHT($D23,E$6),1)="0",10,1*LEFT(RIGHT($D23,E$6),1))),"")) ->  | T23: 17 | AN23: =IF(AL23<>"",ROUND(1/AL23,1),IF(AL50="","",ROUND(AL50,1))) ->  | AR23: 17
C24: 18 | T24: 18 | W24: =IF(E24="","",$U$32/W$6/E24) ->  | AN24: =IF(AL24<>"",ROUND(1/AL24,1),IF(AL51="","",ROUND(AL51,1))) ->  | AR24: 18
C25: 19 | T25: 19 | AN25: =IF(AL25<>"",ROUND(1/AL25,1),IF(AL52="","",ROUND(AL52,1))) ->  | AR25: 19
C26: 20 | T26: 20 | AN26: =IF(AL26<>"",ROUND(1/AL26,1),IF(AL53="","",ROUND(AL53,1))) ->  | AR26: 20
C27: 21 | T27: 21 | AN27: =IF(AL27<>"",ROUND(1/AL27,1),IF(AL54="","",ROUND(AL54,1))) ->  | AR27: 21
C28: 22 | T28: 22 | AN28: =IF(AL28<>"",ROUND(1/AL28,1),IF(AL55="","",ROUND(AL55,1))) ->  | AR28: 22
C29: 23 | T29: 23 | AN29: =IF(AL29<>"",ROUND(1/AL29,1),IF(AL56="","",ROUND(AL56,1))) ->  | AR29: 23
C30: 24 | T30: 24 | AN30: =IF(AL30<>"",ROUND(1/AL30,1),IF(AL57="","",ROUND(AL57,1))) ->  | AR30: 24
U31: weight | AL31: =SUM(AL7:AL30) -> 0.72
U32: 15 | AL32: =SUM(U7:U10)-4+U11*COUNT(AM7:AM30) -> 25
S33: > | AK33: =(1-AL31)/AK59 -> 0.001104389306 | AM33: <
AK34: =IF(AO7>4,AM7,"") -> 47.93192641 | AL34: =IF(AK34="","",1/(AK$33*AK34)) -> 18.89091194
AK35: =IF(AO8>4,AM8,"") -> 45.64749278 | AL35: =IF(AK35="","",1/(AK$33*AK35)) -> 19.83630964
AK36: =IF(AO9>4,AM9,"") -> 49.79121573 | AL36: =IF(AK36="","",1/(AK$33*AK36)) -> 18.18549292
AK37: =IF(AO10>4,AM10,"") ->  | AL37: =IF(AK37="","",1/(AK$33*AK37)) -> 
AK38: =IF(AO11>4,AM11,"") -> 31.36313131 | AL38: =IF(AK38="","",1/(AK$33*AK38)) -> 28.87077161
AK39: =IF(AO12>4,AM12,"") ->  | AL39: =IF(AK39="","",1/(AK$33*AK39)) -> 
AK40: =IF(AO13>4,AM13,"") ->  | AL40: =IF(AK40="","",1/(AK$33*AK40)) -> 
AK41: =IF(AO14>4,AM14,"") -> 52.74166667 | AL41: =IF(AK41="","",1/(AK$33*AK41)) -> 17.16816813
AK42: =IF(AO15>4,AM15,"") -> 34.05277778 | AL42: =IF(AK42="","",1/(AK$33*AK42)) -> 26.59042404
AK43: =IF(AO16>4,AM16,"") -> 39.9375 | AL43: =IF(AK43="","",1/(AK$33*AK43)) -> 22.6723706
AK44: =IF(AO17>4,AM17,"") ->  | AL44: =IF(AK44="","",1/(AK$33*AK44)) -> 
AK45: =IF(AO18>4,AM18,"") ->  | AL45: =IF(AK45="","",1/(AK$33*AK45)) -> 
AK46: =IF(AO19>4,AM19,"") ->  | AL46: =IF(AK46="","",1/(AK$33*AK46)) -> 
AK47: =IF(AO20>4,AM20,"") ->  | AL47: =IF(AK47="","",1/(AK$33*AK47)) -> 
AK48: =IF(AO21>4,AM21,"") ->  | AL48: =IF(AK48="","",1/(AK$33*AK48)) -> 
AK49: =IF(AO22>4,AM22,"") ->  | AL49: =IF(AK49="","",1/(AK$33*AK49)) -> 
AK50: =IF(AO23>4,AM23,"") ->  | AL50: =IF(AK50="","",1/(AK$33*AK50)) -> 
AK51: =IF(AO24>4,AM24,"") ->  | AL51: =IF(AK51="","",1/(AK$33*AK51)) -> 
AK52: =IF(AO25>4,AM25,"") ->  | AL52: =IF(AK52="","",1/(AK$33*AK52)) -> 
AK53: =IF(AO26>4,AM26,"") ->  | AL53: =IF(AK53="","",1/(AK$33*AK53)) -> 
AK54: =IF(AO27>4,AM27,"") ->  | AL54: =IF(AK54="","",1/(AK$33*AK54)) -> 
AK55: =IF(AO28>4,AM28,"") ->  | AL55: =IF(AK55="","",1/(AK$33*AK55)) -> 
AK56: =IF(AO29>4,AM29,"") ->  | AL56: =IF(AK56="","",1/(AK$33*AK56)) -> 
AK57: =IF(AO30>4,AM30,"") ->  | AL57: =IF(AK57="","",1/(AK$33*AK57)) -> 
AK58: =IF(AO31>4,AM31,"") ->  | AL58: =IF(AK58="","",1/(AK$33*AK58)) -> 
AK59: =SUM(AK35:AK58) -> 253.5337843

Sheet Sheet9
B1: HELP
B2: FORM Analysis v2.0
B3: 02-11-2012 | S3: > | AM3: <
B4: Moonee Valley | AT4: FORM
B5: Result | C5: ="F "&COUNT(AM7:AM30) -> F 0 | D5: Race 9 | T5: Calculations -- hidden for cosmetic reasons | AM5: =B4&" "&D5 -> Moonee Valley Race 9 | AS5: v | AT5: delete if scratched
C6: TAB | D6: Form | E6: 15 | F6: 14 | G6: 13 | H6: 12 | I6: 11 | J6: 10 | K6: 9 | L6: 8 | M6: 7 | N6: 6 | O6: 5 | P6: 4 | Q6: 3 | R6: 2 | S6: 1 | T6: Finish Pos | U6: Points | V6: score | W6: =E6 -> 15 | X6: =F6 -> 14 | Y6: 13 | Z6: 12 | AA6: 11 | AB6: 10 | AC6: 9 | AD6: 8 | AE6: 7 | AF6: 6 | AG6: =O6 -> 5 | AH6: =P6 -> 4 | AI6: =Q6 -> 3 | AJ6: =R6 -> 2 | AK6: =S6 -> 1 | AL6: Top 4 | AM6: Analysis | AN6: BM Price | AO6: Rank | AR6: > | AS6: TAB
C7: 1 | D7: =IF(AT7="","",AT7) ->  | E7: =IF(OR(E$6="",$D7=""),"",IF(LEN($D7)>=E$6,IF(LEFT(RIGHT($D7,E$6),1)="x","",IF(LEFT(RIGHT($D7,E$6),1)="0",10,1*LEFT(RIGHT($D7,E$6),1))),"")) ->  | T7: 1 | U7: 8 | V7: =IF(D7="","",VLOOKUP(IF(E7="",11,E7),T$7:U$17,2)+VLOOKUP(IF(F7="",11,F7),T$7:U$17,2)+VLOOKUP(IF(G7="",11,G7),T$7:U$17,2)+VLOOKUP(IF(H7="",11,H7),T$7:U$17,2)+VLOOKUP(IF(I7="",11,I7),T$7:U$17,2)+VLOOKUP(IF(J7="",11,J7),T$7:U$17,2)+VLOOKUP(IF(K7="",11,K7),T$7:U$17,2)+VLOOKUP(IF(L7="",11,L7),T$7:U$17,2)+VLOOKUP(IF(M7="",11,M7),T$7:U$17,2)+VLOOKUP(IF(N7="",11,N7),T$7:U$17,2)+VLOOKUP(IF(O7="",11,O7),T$7:U$17,2)+VLOOKUP(IF(P7="",11,P7),T$7:U$17,2)+VLOOKUP(IF(Q7="",11,Q7),T$7:U$17,2)+VLOOKUP(IF(R7="",11,R7),T$7:U$17,2)+VLOOKUP(IF(S7="",11,S7),T$7:U$17,2)) ->  | W7: =IF(E7="","",$U$32/W$6/E7) ->  | AL7: =IF(AO7>4,"",1/(AL$32/VLOOKUP(AO7,T$7:U$11,2))) ->  | AM7: =IF(V7="","",SUM(W7:AK7)+V7) ->  | AN7: =IF(AL7<>"",ROUND(1/AL7,1),IF(AL34="","",ROUND(AL34,1))) ->  | AO7: =IF(AM7="","",RANK(AM7,AM$7:AM$30)) ->  | AR7: 1
C8: 2 | D8: =IF(AT8="","",AT8) ->  | T8: 2 | U8: 5 | V8: =IF(D8="","",VLOOKUP(IF(E8="",24,E8),T$7:U$17,2)+VLOOKUP(IF(F8="",24,F8),T$7:U$17,2)+VLOOKUP(IF(G8="",24,G8),T$7:U$17,2)+VLOOKUP(IF(H8="",24,H8),T$7:U$17,2)+VLOOKUP(IF(I8="",24,I8),T$7:U$17,2)+VLOOKUP(IF(J8="",24,J8),T$7:U$17,2)+VLOOKUP(IF(K8="",24,K8),T$7:U$17,2)+VLOOKUP(IF(L8="",24,L8),T$7:U$17,2)+VLOOKUP(IF(M8="",24,M8),T$7:U$17,2)+VLOOKUP(IF(N8="",24,N8),T$7:U$17,2)+VLOOKUP(IF(O8="",24,O8),T$7:U$17,2)+VLOOKUP(IF(P8="",24,P8),T$7:U$17,2)+VLOOKUP(IF(Q8="",24,Q8),T$7:U$17,2)+VLOOKUP(IF(R8="",24,R8),T$7:U$17,2)+VLOOKUP(IF(S8="",24,S8),T$7:U$17,2)) ->  | AL8: =IF(AO8>4,"",1/(AL$32/VLOOKUP(AO8,T$7:U$11,2))) ->  | AM8: =IF(V8="","",SUM(W8:AK8)+V8) ->  | AN8: =IF(AL8<>"",ROUND(1/AL8,1),IF(AL35="","",ROUND(AL35,1))) ->  | AO8: =IF(AM8="","",RANK(AM8,AM$7:AM$30)) ->  | AR8: 2
C9: 3 | T9: 3 | U9: 3 | AN9: =IF(AL9<>"",ROUND(1/AL9,1),IF(AL36="","",ROUND(AL36,1))) ->  | AR9: 3
C10: 4 | T10: 4 | U10: 2 | AN10: =IF(AL10<>"",ROUND(1/AL10,1),IF(AL37="","",ROUND(AL37,1))) ->  | AR10: 4
C11: 5 | T11: 5 | U11: 1 | AN11: =IF(AL11<>"",ROUND(1/AL11,1),IF(AL38="","",ROUND(AL38,1))) ->  | AR11: 5
C12: 6 | T12: 6 | U12: 0.8 | AN12: =IF(AL12<>"",ROUND(1/AL12,1),IF(AL39="","",ROUND(AL39,1))) ->  | AR12: 6
C13: 7 | T13: 7 | U13: 0.5 | AN13: =IF(AL13<>"",ROUND(1/AL13,1),IF(AL40="","",ROUND(AL40,1))) ->  | AR13: 7
C14: 8 | T14: 8 | U14: 0.3 | AN14: =IF(AL14<>"",ROUND(1/AL14,1),IF(AL41="","",ROUND(AL41,1))) ->  | AR14: 8
C15: 9 | T15: 9 | U15: 0.2 | AN15: =IF(AL15<>"",ROUND(1/AL15,1),IF(AL42="","",ROUND(AL42,1))) ->  | AR15: 9
C16: 10 | T16: 10 | U16: 0.1 | AN16: =IF(AL16<>"",ROUND(1/AL16,1),IF(AL43="","",ROUND(AL43,1))) ->  | AR16: 10
C17: 11 | T17: 11 | U17: 0 | AN17: =IF(AL17<>"",ROUND(1/AL17,1),IF(AL44="","",ROUND(AL44,1))) ->  | AR17: 11
C18: 12 | T18: 12 | AN18: =IF(AL18<>"",ROUND(1/AL18,1),IF(AL45="","",ROUND(AL45,1))) ->  | AR18: 12
C19: 13 | T19: 13 | AN19: =IF(AL19<>"",ROUND(1/AL19,1),IF(AL46="","",ROUND(AL46,1))) ->  | AR19: 13
C20: 14 | T20: 14 | AN20: =IF(AL20<>"",ROUND(1/AL20,1),IF(AL47="","",ROUND(AL47,1))) ->  | AR20: 14
C21: 15 | T21: 15 | AN21: =IF(AL21<>"",ROUND(1/AL21,1),IF(AL48="","",ROUND(AL48,1))) ->  | AR21: 15
C22: 16 | T22: 16 | AN22: =IF(AL22<>"",ROUND(1/AL22,1),IF(AL49="","",ROUND(AL49,1))) ->  | AR22: 16
C23: 17 | E23: =IF(OR(E$6="",$D23=""),"",IF(LEN($D23)>=E$6,IF(LEFT(RIGHT($D23,E$6),1)="x","",IF(LEFT(RIGHT($D23,E$6),1)="0",10,1*LEFT(RIGHT($D23,E$6),1))),"")) ->  | T23: 17 | AN23: =IF(AL23<>"",ROUND(1/AL23,1),IF(AL50="","",ROUND(AL50,1))) ->  | AR23: 17
C24: 18 | T24: 18 | W24: =IF(E24="","",$U$32/W$6/E24) ->  | AN24: =IF(AL24<>"",ROUND(1/AL24,1),IF(AL51="","",ROUND(AL51,1))) ->  | AR24: 18
C25: 19 | T25: 19 | AN25: =IF(AL25<>"",ROUND(1/AL25,1),IF(AL52="","",ROUND(AL52,1))) ->  | AR25: 19
C26: 20 | T26: 20 | AN26: =IF(AL26<>"",ROUND(1/AL26,1),IF(AL53="","",ROUND(AL53,1))) ->  | AR26: 20
C27: 21 | T27: 21 | AN27: =IF(AL27<>"",ROUND(1/AL27,1),IF(AL54="","",ROUND(AL54,1))) ->  | AR27: 21
C28: 22 | T28: 22 | AN28: =IF(AL28<>"",ROUND(1/AL28,1),IF(AL55="","",ROUND(AL55,1))) ->  | AR28: 22
C29: 23 | T29: 23 | AN29: =IF(AL29<>"",ROUND(1/AL29,1),IF(AL56="","",ROUND(AL56,1))) ->  | AR29: 23
C30: 24 | T30: 24 | AN30: =IF(AL30<>"",ROUND(1/AL30,1),IF(AL57="","",ROUND(AL57,1))) ->  | AR30: 24
U31: weight | AL31: =SUM(AL7:AL30) -> 0
U32: 15 | AL32: =SUM(U7:U10)-4+U11*COUNT(AM7:AM30) -> 14
S33: > | AK33: =(1-AL31)/AK59 ->  | AM33: <
AK34: =IF(AO7>4,AM7,"") ->  | AL34: =IF(AK34="","",1/(AK$33*AK34)) -> 
AK35: =IF(AO8>4,AM8,"") ->  | AL35: =IF(AK35="","",1/(AK$33*AK35)) -> 
AK36: =IF(AO9>4,AM9,"") ->  | AL36: =IF(AK36="","",1/(AK$33*AK36)) -> 
AK37: =IF(AO10>4,AM10,"") ->  | AL37: =IF(AK37="","",1/(AK$33*AK37)) -> 
AK38: =IF(AO11>4,AM11,"") ->  | AL38: =IF(AK38="","",1/(AK$33*AK38)) -> 
AK39: =IF(AO12>4,AM12,"") ->  | AL39: =IF(AK39="","",1/(AK$33*AK39)) -> 
AK40: =IF(AO13>4,AM13,"") ->  | AL40: =IF(AK40="","",1/(AK$33*AK40)) -> 
AK41: =IF(AO14>4,AM14,"") ->  | AL41: =IF(AK41="","",1/(AK$33*AK41)) -> 
AK42: =IF(AO15>4,AM15,"") ->  | AL42: =IF(AK42="","",1/(AK$33*AK42)) -> 
AK43: =IF(AO16>4,AM16,"") ->  | AL43: =IF(AK43="","",1/(AK$33*AK43)) -> 
AK44: =IF(AO17>4,AM17,"") ->  | AL44: =IF(AK44="","",1/(AK$33*AK44)) -> 
AK45: =IF(AO18>4,AM18,"") ->  | AL45: =IF(AK45="","",1/(AK$33*AK45)) -> 
AK46: =IF(AO19>4,AM19,"") ->  | AL46: =IF(AK46="","",1/(AK$33*AK46)) -> 
AK47: =IF(AO20>4,AM20,"") ->  | AL47: =IF(AK47="","",1/(AK$33*AK47)) -> 
AK48: =IF(AO21>4,AM21,"") ->  | AL48: =IF(AK48="","",1/(AK$33*AK48)) -> 
AK49: =IF(AO22>4,AM22,"") ->  | AL49: =IF(AK49="","",1/(AK$33*AK49)) -> 
AK50: =IF(AO23>4,AM23,"") ->  | AL50: =IF(AK50="","",1/(AK$33*AK50)) -> 
AK51: =IF(AO24>4,AM24,"") ->  | AL51: =IF(AK51="","",1/(AK$33*AK51)) -> 
AK52: =IF(AO25>4,AM25,"") ->  | AL52: =IF(AK52="","",1/(AK$33*AK52)) -> 
AK53: =IF(AO26>4,AM26,"") ->  | AL53: =IF(AK53="","",1/(AK$33*AK53)) -> 
AK54: =IF(AO27>4,AM27,"") ->  | AL54: =IF(AK54="","",1/(AK$33*AK54)) -> 
AK55: =IF(AO28>4,AM28,"") ->  | AL55: =IF(AK55="","",1/(AK$33*AK55)) -> 
AK56: =IF(AO29>4,AM29,"") ->  | AL56: =IF(AK56="","",1/(AK$33*AK56)) -> 
AK57: =IF(AO30>4,AM30,"") ->  | AL57: =IF(AK57="","",1/(AK$33*AK57)) -> 
AK58: =IF(AO31>4,AM31,"") ->  | AL58: =IF(AK58="","",1/(AK$33*AK58)) -> 
AK59: =SUM(AK35:AK58) -> 0

Sheet Sheet10
B1: HELP
B2: FORM Analysis v2.0
B3: 02-11-2012 | S3: > | AM3: <
B4: Moonee Valley | AT4: FORM
B5: Result | C5: ="F "&COUNT(AM7:AM30) -> F 0 | D5: Race 10 | T5: Calculations -- hidden for cosmetic reasons | AM5: =B4&" "&D5 -> Moonee Valley Race 10 | AS5: v | AT5: delete if scratched
C6: TAB | D6: Form | E6: 15 | F6: 14 | G6: 13 | H6: 12 | I6: 11 | J6: 10 | K6: 9 | L6: 8 | M6: 7 | N6: 6 | O6: 5 | P6: 4 | Q6: 3 | R6: 2 | S6: 1 | T6: Finish Pos | U6: Points | V6: score | W6: =E6 -> 15 | X6: =F6 -> 14 | Y6: 13 | Z6: 12 | AA6: 11 | AB6: 10 | AC6: 9 | AD6: 8 | AE6: 7 | AF6: 6 | AG6: =O6 -> 5 | AH6: =P6 -> 4 | AI6: =Q6 -> 3 | AJ6: =R6 -> 2 | AK6: =S6 -> 1 | AL6: Top 4 | AM6: Analysis | AN6: BM Price | AO6: Rank | AR6: > | AS6: TAB
C7: 1 | D7: =IF(AT7="","",AT7) ->  | E7: =IF(OR(E$6="",$D7=""),"",IF(LEN($D7)>=E$6,IF(LEFT(RIGHT($D7,E$6),1)="x","",IF(LEFT(RIGHT($D7,E$6),1)="0",10,1*LEFT(RIGHT($D7,E$6),1))),"")) ->  | T7: 1 | U7: 8 | V7: =IF(D7="","",VLOOKUP(IF(E7="",11,E7),T$7:U$17,2)+VLOOKUP(IF(F7="",11,F7),T$7:U$17,2)+VLOOKUP(IF(G7="",11,G7),T$7:U$17,2)+VLOOKUP(IF(H7="",11,H7),T$7:U$17,2)+VLOOKUP(IF(I7="",11,I7),T$7:U$17,2)+VLOOKUP(IF(J7="",11,J7),T$7:U$17,2)+VLOOKUP(IF(K7="",11,K7),T$7:U$17,2)+VLOOKUP(IF(L7="",11,L7),T$7:U$17,2)+VLOOKUP(IF(M7="",11,M7),T$7:U$17,2)+VLOOKUP(IF(N7="",11,N7),T$7:U$17,2)+VLOOKUP(IF(O7="",11,O7),T$7:U$17,2)+VLOOKUP(IF(P7="",11,P7),T$7:U$17,2)+VLOOKUP(IF(Q7="",11,Q7),T$7:U$17,2)+VLOOKUP(IF(R7="",11,R7),T$7:U$17,2)+VLOOKUP(IF(S7="",11,S7),T$7:U$17,2)) ->  | W7: =IF(E7="","",$U$32/W$6/E7) ->  | AL7: =IF(AO7>4,"",1/(AL$32/VLOOKUP(AO7,T$7:U$11,2))) ->  | AM7: =IF(V7="","",SUM(W7:AK7)+V7) ->  | AN7: =IF(AL7<>"",ROUND(1/AL7,1),IF(AL34="","",ROUND(AL34,1))) ->  | AO7: =IF(AM7="","",RANK(AM7,AM$7:AM$30)) ->  | AR7: 1
C8: 2 | D8: =IF(AT8="","",AT8) ->  | T8: 2 | U8: 5 | V8: =IF(D8="","",VLOOKUP(IF(E8="",24,E8),T$7:U$17,2)+VLOOKUP(IF(F8="",24,F8),T$7:U$17,2)+VLOOKUP(IF(G8="",24,G8),T$7:U$17,2)+VLOOKUP(IF(H8="",24,H8),T$7:U$17,2)+VLOOKUP(IF(I8="",24,I8),T$7:U$17,2)+VLOOKUP(IF(J8="",24,J8),T$7:U$17,2)+VLOOKUP(IF(K8="",24,K8),T$7:U$17,2)+VLOOKUP(IF(L8="",24,L8),T$7:U$17,2)+VLOOKUP(IF(M8="",24,M8),T$7:U$17,2)+VLOOKUP(IF(N8="",24,N8),T$7:U$17,2)+VLOOKUP(IF(O8="",24,O8),T$7:U$17,2)+VLOOKUP(IF(P8="",24,P8),T$7:U$17,2)+VLOOKUP(IF(Q8="",24,Q8),T$7:U$17,2)+VLOOKUP(IF(R8="",24,R8),T$7:U$17,2)+VLOOKUP(IF(S8="",24,S8),T$7:U$17,2)) ->  | AL8: =IF(AO8>4,"",1/(AL$32/VLOOKUP(AO8,T$7:U$11,2))) ->  | AM8: =IF(V8="","",SUM(W8:AK8)+V8) ->  | AN8: =IF(AL8<>"",ROUND(1/AL8,1),IF(AL35="","",ROUND(AL35,1))) ->  | AO8: =IF(AM8="","",RANK(AM8,AM$7:AM$30)) ->  | AR8: 2
C9: 3 | T9: 3 | U9: 3 | AN9: =IF(AL9<>"",ROUND(1/AL9,1),IF(AL36="","",ROUND(AL36,1))) ->  | AR9: 3
C10: 4 | T10: 4 | U10: 2 | AN10: =IF(AL10<>"",ROUND(1/AL10,1),IF(AL37="","",ROUND(AL37,1))) ->  | AR10: 4
C11: 5 | T11: 5 | U11: 1 | AN11: =IF(AL11<>"",ROUND(1/AL11,1),IF(AL38="","",ROUND(AL38,1))) ->  | AR11: 5
C12: 6 | T12: 6 | U12: 0.8 | AN12: =IF(AL12<>"",ROUND(1/AL12,1),IF(AL39="","",ROUND(AL39,1))) ->  | AR12: 6
C13: 7 | T13: 7 | U13: 0.5 | AN13: =IF(AL13<>"",ROUND(1/AL13,1),IF(AL40="","",ROUND(AL40,1))) ->  | AR13: 7
C14: 8 | T14: 8 | U14: 0.3 | AN14: =IF(AL14<>"",ROUND(1/AL14,1),IF(AL41="","",ROUND(AL41,1))) ->  | AR14: 8
C15: 9 | T15: 9 | U15: 0.2 | AN15: =IF(AL15<>"",ROUND(1/AL15,1),IF(AL42="","",ROUND(AL42,1))) ->  | AR15: 9
C16: 10 | T16: 10 | U16: 0.1 | AN16: =IF(AL16<>"",ROUND(1/AL16,1),IF(AL43="","",ROUND(AL43,1))) ->  | AR16: 10
C17: 11 | T17: 11 | U17: 0 | AN17: =IF(AL17<>"",ROUND(1/AL17,1),IF(AL44="","",ROUND(AL44,1))) ->  | AR17: 11
C18: 12 | T18: 12 | AN18: =IF(AL18<>"",ROUND(1/AL18,1),IF(AL45="","",ROUND(AL45,1))) ->  | AR18: 12
C19: 13 | T19: 13 | AN19: =IF(AL19<>"",ROUND(1/AL19,1),IF(AL46="","",ROUND(AL46,1))) ->  | AR19: 13
C20: 14 | T20: 14 | AN20: =IF(AL20<>"",ROUND(1/AL20,1),IF(AL47="","",ROUND(AL47,1))) ->  | AR20: 14
C21: 15 | T21: 15 | AN21: =IF(AL21<>"",ROUND(1/AL21,1),IF(AL48="","",ROUND(AL48,1))) ->  | AR21: 15
C22: 16 | S22: =IF(OR(S$6="",$D22=""),"",IF(LEN($D22)>=S$6,IF(LEFT(RIGHT($D22,S$6),1)="x","",IF(LEFT(RIGHT($D22,S$6),1)="0",10,1*LEFT(RIGHT($D22,S$6),1))),"")) ->  | T22: 16 | AN22: =IF(AL22<>"",ROUND(1/AL22,1),IF(AL49="","",ROUND(AL49,1))) ->  | AR22: 16
C23: 17 | E23: =IF(OR(E$6="",$D23=""),"",IF(LEN($D23)>=E$6,IF(LEFT(RIGHT($D23,E$6),1)="x","",IF(LEFT(RIGHT($D23,E$6),1)="0",10,1*LEFT(RIGHT($D23,E$6),1))),"")) ->  | T23: 17 | AN23: =IF(AL23<>"",ROUND(1/AL23,1),IF(AL50="","",ROUND(AL50,1))) ->  | AR23: 17
C24: 18 | T24: 18 | W24: =IF(E24="","",$U$32/W$6/E24) ->  | AN24: =IF(AL24<>"",ROUND(1/AL24,1),IF(AL51="","",ROUND(AL51,1))) ->  | AR24: 18
C25: 19 | T25: 19 | AN25: =IF(AL25<>"",ROUND(1/AL25,1),IF(AL52="","",ROUND(AL52,1))) ->  | AR25: 19
C26: 20 | T26: 20 | AN26: =IF(AL26<>"",ROUND(1/AL26,1),IF(AL53="","",ROUND(AL53,1))) ->  | AR26: 20
C27: 21 | T27: 21 | AN27: =IF(AL27<>"",ROUND(1/AL27,1),IF(AL54="","",ROUND(AL54,1))) ->  | AR27: 21
C28: 22 | T28: 22 | AN28: =IF(AL28<>"",ROUND(1/AL28,1),IF(AL55="","",ROUND(AL55,1))) ->  | AR28: 22
C29: 23 | T29: 23 | AN29: =IF(AL29<>"",ROUND(1/AL29,1),IF(AL56="","",ROUND(AL56,1))) ->  | AR29: 23
C30: 24 | T30: 24 | AN30: =IF(AL30<>"",ROUND(1/AL30,1),IF(AL57="","",ROUND(AL57,1))) ->  | AR30: 24
U31: weight | AL31: =SUM(AL7:AL30) -> 0
U32: 15 | AL32: =SUM(U7:U10)-4+U11*COUNT(AM7:AM30) -> 14
S33: > | AK33: =(1-AL31)/AK59 ->  | AM33: <
AK34: =IF(AO7>4,AM7,"") ->  | AL34: =IF(AK34="","",1/(AK$33*AK34)) -> 
AK35: =IF(AO8>4,AM8,"") ->  | AL35: =IF(AK35="","",1/(AK$33*AK35)) -> 
AK36: =IF(AO9>4,AM9,"") ->  | AL36: =IF(AK36="","",1/(AK$33*AK36)) -> 
AK37: =IF(AO10>4,AM10,"") ->  | AL37: =IF(AK37="","",1/(AK$33*AK37)) -> 
AK38: =IF(AO11>4,AM11,"") ->  | AL38: =IF(AK38="","",1/(AK$33*AK38)) -> 
AK39: =IF(AO12>4,AM12,"") ->  | AL39: =IF(AK39="","",1/(AK$33*AK39)) -> 
AK40: =IF(AO13>4,AM13,"") ->  | AL40: =IF(AK40="","",1/(AK$33*AK40)) -> 
AK41: =IF(AO14>4,AM14,"") ->  | AL41: =IF(AK41="","",1/(AK$33*AK41)) -> 
AK42: =IF(AO15>4,AM15,"") ->  | AL42: =IF(AK42="","",1/(AK$33*AK42)) -> 
AK43: =IF(AO16>4,AM16,"") ->  | AL43: =IF(AK43="","",1/(AK$33*AK43)) -> 
AK44: =IF(AO17>4,AM17,"") ->  | AL44: =IF(AK44="","",1/(AK$33*AK44)) -> 
AK45: =IF(AO18>4,AM18,"") ->  | AL45: =IF(AK45="","",1/(AK$33*AK45)) -> 
AK46: =IF(AO19>4,AM19,"") ->  | AL46: =IF(AK46="","",1/(AK$33*AK46)) -> 
AK47: =IF(AO20>4,AM20,"") ->  | AL47: =IF(AK47="","",1/(AK$33*AK47)) -> 
AK48: =IF(AO21>4,AM21,"") ->  | AL48: =IF(AK48="","",1/(AK$33*AK48)) -> 
AK49: =IF(AO22>4,AM22,"") ->  | AL49: =IF(AK49="","",1/(AK$33*AK49)) -> 
AK50: =IF(AO23>4,AM23,"") ->  | AL50: =IF(AK50="","",1/(AK$33*AK50)) -> 
AK51: =IF(AO24>4,AM24,"") ->  | AL51: =IF(AK51="","",1/(AK$33*AK51)) -> 
AK52: =IF(AO25>4,AM25,"") ->  | AL52: =IF(AK52="","",1/(AK$33*AK52)) -> 
AK53: =IF(AO26>4,AM26,"") ->  | AL53: =IF(AK53="","",1/(AK$33*AK53)) -> 
AK54: =IF(AO27>4,AM27,"") ->  | AL54: =IF(AK54="","",1/(AK$33*AK54)) -> 
AK55: =IF(AO28>4,AM28,"") ->  | AL55: =IF(AK55="","",1/(AK$33*AK55)) -> 
AK56: =IF(AO29>4,AM29,"") ->  | AL56: =IF(AK56="","",1/(AK$33*AK56)) -> 
AK57: =IF(AO30>4,AM30,"") ->  | AL57: =IF(AK57="","",1/(AK$33*AK57)) -> 
AK58: =IF(AO31>4,AM31,"") ->  | AL58: =IF(AK58="","",1/(AK$33*AK58)) -> 
AK59: =SUM(AK35:AK58) -> 0
